Workbook

Sheet Project Information
B3: Please select your language: | E3: English | N3: Version 3.2
B4: ='Trunking Translation'!$B$13 -> OPPLE LED Trunking Configurator
B7: ='Trunking Translation'!$B$14 -> Project Information
C9: ='Trunking Translation'!B15 -> Project Name*
D11: ='Trunking Translation'!B16 -> Wholesaler
D13: ='Trunking Translation'!B17 -> Installer
B15: ='Trunking Translation'!B18 -> OPPLE Lighting B.V Information
C17: ='Trunking Translation'!B19 -> Representative*
D19: ='Trunking Translation'!B20 -> Date | F19: =TODAY() -> 2021-06-04
B21: ='Trunking Translation'!B21 -> Project Remark
B28: # Sections (Max. 100) | H28: 1
H29: 4
B30: ='Trunking Translation'!B22 -> Section Name & Remark
A31: 1 | B31: =CONCATENATE('Trunking Translation'!$B$23, "_",A31) -> Section_1
A32: 2 | B32: =CONCATENATE('Trunking Translation'!$B$23, "_",A32) -> Section_2
A33: 3 | B33: =CONCATENATE('Trunking Translation'!$B$23, "_",A33) -> Section_3
A34: 4 | B34: =CONCATENATE('Trunking Translation'!$B$23, "_",A34) -> Section_4
A35: 5 | B35: =CONCATENATE('Trunking Translation'!$B$23, "_",A35) -> Section_5
A36: 6 | B36: =CONCATENATE('Trunking Translation'!$B$23, "_",A36) -> Section_6
A37: 7 | B37: =CONCATENATE('Trunking Translation'!$B$23, "_",A37) -> Section_7
A38: 8 | B38: =CONCATENATE('Trunking Translation'!$B$23, "_",A38) -> Section_8
A39: 9 | B39: =CONCATENATE('Trunking Translation'!$B$23, "_",A39) -> Section_9
A40: 10 | B40: =CONCATENATE('Trunking Translation'!$B$23, "_",A40) -> Section_10
A41: 11 | B41: =CONCATENATE('Trunking Translation'!$B$23, "_",A41) -> Section_11
A42: 12 | B42: =CONCATENATE('Trunking Translation'!$B$23, "_",A42) -> Section_12
A43: 13 | B43: =CONCATENATE('Trunking Translation'!$B$23, "_",A43) -> Section_13
A44: 14 | B44: =CONCATENATE('Trunking Translation'!$B$23, "_",A44) -> Section_14
A45: 15 | B45: =CONCATENATE('Trunking Translation'!$B$23, "_",A45) -> Section_15
A46: 16 | B46: =CONCATENATE('Trunking Translation'!$B$23, "_",A46) -> Section_16
A47: 17 | B47: =CONCATENATE('Trunking Translation'!$B$23, "_",A47) -> Section_17
A48: 18 | B48: =CONCATENATE('Trunking Translation'!$B$23, "_",A48) -> Section_18
A49: 19 | B49: =CONCATENATE('Trunking Translation'!$B$23, "_",A49) -> Section_19
A50: 20 | B50: =CONCATENATE('Trunking Translation'!$B$23, "_",A50) -> Section_20
A51: 21 | B51: =CONCATENATE('Trunking Translation'!$B$23, "_",A51) -> Section_21
A52: 22 | B52: =CONCATENATE('Trunking Translation'!$B$23, "_",A52) -> Section_22
A53: 23 | B53: =CONCATENATE('Trunking Translation'!$B$23, "_",A53) -> Section_23
A54: 24 | B54: =CONCATENATE('Trunking Translation'!$B$23, "_",A54) -> Section_24
A55: 25 | B55: =CONCATENATE('Trunking Translation'!$B$23, "_",A55) -> Section_25
A56: 26 | B56: =CONCATENATE('Trunking Translation'!$B$23, "_",A56) -> Section_26
A57: 27 | B57: =CONCATENATE('Trunking Translation'!$B$23, "_",A57) -> Section_27
A58: 28 | B58: =CONCATENATE('Trunking Translation'!$B$23, "_",A58) -> Section_28
A59: 29 | B59: =CONCATENATE('Trunking Translation'!$B$23, "_",A59) -> Section_29
A60: 30 | B60: =CONCATENATE('Trunking Translation'!$B$23, "_",A60) -> Section_30
A61: 31 | B61: =CONCATENATE('Trunking Translation'!$B$23, "_",A61) -> Section_31
A62: 32 | B62: =CONCATENATE('Trunking Translation'!$B$23, "_",A62) -> Section_32
A63: 33 | B63: =CONCATENATE('Trunking Translation'!$B$23, "_",A63) -> Section_33
A64: 34 | B64: =CONCATENATE('Trunking Translation'!$B$23, "_",A64) -> Section_34
A65: 35 | B65: =CONCATENATE('Trunking Translation'!$B$23, "_",A65) -> Section_35
A66: 36 | B66: =CONCATENATE('Trunking Translation'!$B$23, "_",A66) -> Section_36
A67: 37 | B67: =CONCATENATE('Trunking Translation'!$B$23, "_",A67) -> Section_37
A68: 38 | B68: =CONCATENATE('Trunking Translation'!$B$23, "_",A68) -> Section_38
A69: 39 | B69: =CONCATENATE('Trunking Translation'!$B$23, "_",A69) -> Section_39
A70: 40 | B70: =CONCATENATE('Trunking Translation'!$B$23, "_",A70) -> Section_40
A71: 41 | B71: =CONCATENATE('Trunking Translation'!$B$23, "_",A71) -> Section_41
A72: 42 | B72: =CONCATENATE('Trunking Translation'!$B$23, "_",A72) -> Section_42
A73: 43 | B73: =CONCATENATE('Trunking Translation'!$B$23, "_",A73) -> Section_43
A74: 44 | B74: =CONCATENATE('Trunking Translation'!$B$23, "_",A74) -> Section_44
A75: 45 | B75: =CONCATENATE('Trunking Translation'!$B$23, "_",A75) -> Section_45
A76: 46 | B76: =CONCATENATE('Trunking Translation'!$B$23, "_",A76) -> Section_46
A77: 47 | B77: =CONCATENATE('Trunking Translation'!$B$23, "_",A77) -> Section_47
A78: 48 | B78: =CONCATENATE('Trunking Translation'!$B$23, "_",A78) -> Section_48
A79: 49 | B79: =CONCATENATE('Trunking Translation'!$B$23, "_",A79) -> Section_49
A80: 50 | B80: =CONCATENATE('Trunking Translation'!$B$23, "_",A80) -> Section_50
A81: 51 | B81: =CONCATENATE('Trunking Translation'!$B$23, "_",A81) -> Section_51
A82: 52 | B82: =CONCATENATE('Trunking Translation'!$B$23, "_",A82) -> Section_52
A83: 53 | B83: =CONCATENATE('Trunking Translation'!$B$23, "_",A83) -> Section_53
A84: 54 | B84: =CONCATENATE('Trunking Translation'!$B$23, "_",A84) -> Section_54
A85: 55 | B85: =CONCATENATE('Trunking Translation'!$B$23, "_",A85) -> Section_55
A86: 56 | B86: =CONCATENATE('Trunking Translation'!$B$23, "_",A86) -> Section_56
A87: 57 | B87: =CONCATENATE('Trunking Translation'!$B$23, "_",A87) -> Section_57
A88: 58 | B88: =CONCATENATE('Trunking Translation'!$B$23, "_",A88) -> Section_58
A89: 59 | B89: =CONCATENATE('Trunking Translation'!$B$23, "_",A89) -> Section_59
A90: 60 | B90: =CONCATENATE('Trunking Translation'!$B$23, "_",A90) -> Section_60
A91: 61 | B91: =CONCATENATE('Trunking Translation'!$B$23, "_",A91) -> Section_61
A92: 62 | B92: =CONCATENATE('Trunking Translation'!$B$23, "_",A92) -> Section_62
A93: 63 | B93: =CONCATENATE('Trunking Translation'!$B$23, "_",A93) -> Section_63
A94: 64 | B94: =CONCATENATE('Trunking Translation'!$B$23, "_",A94) -> Section_64
A95: 65 | B95: =CONCATENATE('Trunking Translation'!$B$23, "_",A95) -> Section_65
A96: 66 | B96: =CONCATENATE('Trunking Translation'!$B$23, "_",A96) -> Section_66
A97: 67 | B97: =CONCATENATE('Trunking Translation'!$B$23, "_",A97) -> Section_67
A98: 68 | B98: =CONCATENATE('Trunking Translation'!$B$23, "_",A98) -> Section_68
A99: 69 | B99: =CONCATENATE('Trunking Translation'!$B$23, "_",A99) -> Section_69
A100: 70 | B100: =CONCATENATE('Trunking Translation'!$B$23, "_",A100) -> Section_70
A101: 71 | B101: =CONCATENATE('Trunking Translation'!$B$23, "_",A101) -> Section_71
A102: 72 | B102: =CONCATENATE('Trunking Translation'!$B$23, "_",A102) -> Section_72
A103: 73 | B103: =CONCATENATE('Trunking Translation'!$B$23, "_",A103) -> Section_73
A104: 74 | B104: =CONCATENATE('Trunking Translation'!$B$23, "_",A104) -> Section_74
A105: 75 | B105: =CONCATENATE('Trunking Translation'!$B$23, "_",A105) -> Section_75
A106: 76 | B106: =CONCATENATE('Trunking Translation'!$B$23, "_",A106) -> Section_76
A107: 77 | B107: =CONCATENATE('Trunking Translation'!$B$23, "_",A107) -> Section_77
A108: 78 | B108: =CONCATENATE('Trunking Translation'!$B$23, "_",A108) -> Section_78
A109: 79 | B109: =CONCATENATE('Trunking Translation'!$B$23, "_",A109) -> Section_79
A110: 80 | B110: =CONCATENATE('Trunking Translation'!$B$23, "_",A110) -> Section_80
A111: 81 | B111: =CONCATENATE('Trunking Translation'!$B$23, "_",A111) -> Section_81
A112: 82 | B112: =CONCATENATE('Trunking Translation'!$B$23, "_",A112) -> Section_82
A113: 83 | B113: =CONCATENATE('Trunking Translation'!$B$23, "_",A113) -> Section_83
A114: 84 | B114: =CONCATENATE('Trunking Translation'!$B$23, "_",A114) -> Section_84
A115: 85 | B115: =CONCATENATE('Trunking Translation'!$B$23, "_",A115) -> Section_85
A116: 86 | B116: =CONCATENATE('Trunking Translation'!$B$23, "_",A116) -> Section_86
A117: 87 | B117: =CONCATENATE('Trunking Translation'!$B$23, "_",A117) -> Section_87
A118: 88 | B118: =CONCATENATE('Trunking Translation'!$B$23, "_",A118) -> Section_88
A119: 89 | B119: =CONCATENATE('Trunking Translation'!$B$23, "_",A119) -> Section_89
A120: 90 | B120: =CONCATENATE('Trunking Translation'!$B$23, "_",A120) -> Section_90
A121: 91 | B121: =CONCATENATE('Trunking Translation'!$B$23, "_",A121) -> Section_91
A122: 92 | B122: =CONCATENATE('Trunking Translation'!$B$23, "_",A122) -> Section_92
A123: 93 | B123: =CONCATENATE('Trunking Translation'!$B$23, "_",A123) -> Section_93
A124: 94 | B124: =CONCATENATE('Trunking Translation'!$B$23, "_",A124) -> Section_94
A125: 95 | B125: =CONCATENATE('Trunking Translation'!$B$23, "_",A125) -> Section_95
A126: 96 | B126: =CONCATENATE('Trunking Translation'!$B$23, "_",A126) -> Section_96
A127: 97 | B127: =CONCATENATE('Trunking Translation'!$B$23, "_",A127) -> Section_97
A128: 98 | B128: =CONCATENATE('Trunking Translation'!$B$23, "_",A128) -> Section_98
A129: 99 | B129: =CONCATENATE('Trunking Translation'!$B$23, "_",A129) -> Section_99
A130: 100 | B130: =CONCATENATE('Trunking Translation'!$B$23, "_",A130) -> Section_100

Sheet Validation Sheet (hidden)
A1: 1
A2: 2
A3: 3
A4: 4
A5: 5
A6: 6
A7: 7
A8: 8
A9: 9
A10: 10
A11: 11
A12: 12
A13: 13
A14: 14
A15: 15
A16: 16
A17: 17
A18: 18
A19: 19
A20: 20
A21: 21
A22: 22
A23: 23
A24: 24
A25: 25
A26: 26
A27: 27
A28: 28
A29: 29
A30: 30
A31: 31
A32: 32
A33: 33
A34: 34
A35: 35
A36: 36
A37: 37
A38: 38
A39: 39
A40: 40
A41: 41
A42: 42
A43: 43
A44: 44
A45: 45
A46: 46
A47: 47
A48: 48
A49: 49
A50: 50
A51: 51
A52: 52
A53: 53
A54: 54
A55: 55
A56: 56
A57: 57
A58: 58
A59: 59
A60: 60
A61: 61
A62: 62
A63: 63
A64: 64
A65: 65
A66: 66
A67: 67
A68: 68
A69: 69
A70: 70
A71: 71
A72: 72
A73: 73
A74: 74
A75: 75
A76: 76
A77: 77
A78: 78
A79: 79
A80: 80
A81: 81
A82: 82
A83: 83
A84: 84
A85: 85
A86: 86
A87: 87
A88: 88
A89: 89
A90: 90
A91: 91
A92: 92
A93: 93
A94: 94
A95: 95
A96: 96
A97: 97
A98: 98
A99: 99
A100: 100

Sheet Input Form (hidden)
AF3: Probe L
B4: ='Trunking Translation'!B25 -> OPPLE LED Trunking: Input Form | X4: No. of Senfor per Line (FULL) | AF4: Probe H | AK4: Installation Height
X5: =IFERROR(ROUNDUP(IF(Q15=$AF$6,1,IF(Q15=$AF$7,2,IF($AF$8=$AF$8,IF(P15=$AF$3,E15/VLOOKUP(O15,'Art. List'!I5:K15,2,FALSE),IF('Input Form'!P15='Input Form'!$AF$4,'Input Form'!E15/VLOOKUP('Input Form'!O15,'Art. List'!$I$5:$K$15,3,FALSE),0)),$AH$15))),0),0) -> 0 | AH5: LED Module Occupation per Line | AK5: 3
AF6: ='Trunking Translation'!B84 -> Begin | AH6: ='Trunking Translation'!B52 -> Full | AK6: 4
AF7: ='Trunking Translation'!B85 -> Begin-End | AH7: ='Trunking Translation'!B53 -> Half | AK7: 5
C8: ='Trunking Translation'!B15 -> Project Name* | D8: =IF(ISBLANK('Project Information'!F9),"",'Project Information'!F9) ->  | H8: ='Trunking Translation'!B19 -> Representative* | I8: =IF(ISBLANK('Project Information'!F17),"",'Project Information'!F17) ->  | AF8: ='Trunking Translation'!$B$52 -> Full | AH8: ='Trunking Translation'!B54 -> One-Third | AK8: 6
C9: ='Trunking Translation'!B16 -> Wholesaler | D9: =IF(ISBLANK('Project Information'!F11),"",'Project Information'!F11) ->  | H9: ='Trunking Translation'!B20 -> Date | I9: ='Project Information'!F19 -> 2021-06-04 | AF9: ='Trunking Translation'!$B$55 -> Custom | AH9: ='Trunking Translation'!B55 -> Custom | AK9: 7
C10: ='Trunking Translation'!B17 -> Installer | D10: =IF(ISBLANK('Project Information'!F13),"",'Project Information'!F13) ->  | AK10: 8
AK11: 9
B12: ='Trunking Translation'!B23 -> Section | C12: ='Trunking Translation'!B29 -> LED Module | D12: ='Trunking Translation'!B30 -> No. of Lines | E12: ='Trunking Translation'!B31 -> Length per line (m) | F12: ='Trunking Translation'!B32 -> Feed-in-box | G12: ='Trunking Translation'!C72 -> Feed-out-box | H12: ='Trunking Translation'!B33 -> Mounting Method | I12: ='Trunking Translation'!B34 -> LED Module Occupation per Line | J12: ='Trunking Translation'!B36 -> LED Modules per Line | K12: ='Trunking Translation'!B35 -> Custom Amount | L12: ='Trunking Translation'!B87 -> Blind Covers per line | M12: ='Trunking Translation'!B37 -> Line ends with LED Module? | N12: ='Trunking Translation'!$B73 -> Sensor | O12: ='Trunking Translation'!$B74 -> Installation Height (m) | P12: ='Trunking Translation'!$B76 -> Sensor Type | Q12: ='Trunking Translation'!$B75 -> Sensor Occupation per Line | R12: ='Trunking Translation'!$B77 -> No. of Sensors per Line | S12: ='Trunking Translation'!B35 -> Custom Amount | T12: DALI Power Supply | AF12: TRUE | AK12: 10
V13: DALI | AF13: FALSE | AH13: ='Trunking Translation'!B47 -> Yes | AK13: 12.5
AH14: ='Trunking Translation'!B48 -> No
B15: =IF('Project Information'!D31=0,"",'Project Information'!D31) ->  | J15: =ROUNDUP(IF(I15=$AH$6,E15/1.5,IF(I15=$AH$7,E15/3,IF(I15=$AH$8,E15/4.5,IF(I15=$AH$9,K15,0)))),) -> 0 | L15: =E15/1.5-J15 -> 0 | M15: =IF(ISBLANK(I15),"",IF(I15=$AH$7,IF(RIGHT(E15/3-TRUNC(E15/3),1)="5",$AH$13,$AH$14),IF(I15=$AH$8,IF(RIGHT(E15/4.5-TRUNC(E15/4.5),1)="3",$AH$13,$AH$14),IF(I15=$AH$6,$AH$13,$AH$15)))) ->  | R15: =IFERROR(ROUNDUP(IF(Q15=$AF$6,1,IF(Q15=$AF$7,2,IF(Q15=$AF$8,IF(P15=$AF$3,E15/VLOOKUP(O15,'Art. List'!I5:K15,2,FALSE),IF('Input Form'!P15='Input Form'!$AF$4,'Input Form'!E15/VLOOKUP('Input Form'!O15,'Art. List'!$I$5:$K$15,3,FALSE),0)),$AH$15))),0),S15) -> 0 | U15: FALSE | AH15: ='Trunking Translation'!B57 -> Unknown
B16: =IF('Project Information'!D32=0,"",'Project Information'!D32) ->  | J16: =ROUNDUP(IF(I16=$AH$6,E16/1.5,IF(I16=$AH$7,E16/3,IF(I16=$AH$8,E16/4.5,IF(I16=$AH$9,K16,0)))),) -> 0 | L16: =E16/1.5-J16 -> 0 | M16: =IF(ISBLANK(I16),"",IF(I16=$AH$7,IF(RIGHT(E16/3-TRUNC(E16/3),1)="5",$AH$13,$AH$14),IF(I16=$AH$8,IF(RIGHT(E16/4.5-TRUNC(E16/4.5),1)="3",$AH$13,$AH$14),IF(I16=$AH$6,$AH$13,$AH$15)))) ->  | R16: =IFERROR(ROUNDUP(IF(Q16=$AF$6,1,IF(Q16=$AF$7,2,IF(Q16=$AF$8,IF(P16=$AF$3,E16/VLOOKUP(O16,'Art. List'!I6:K16,2,FALSE),IF('Input Form'!P16='Input Form'!$AF$4,'Input Form'!E16/VLOOKUP('Input Form'!O16,'Art. List'!$I$5:$K$15,3,FALSE),0)),$AH$15))),0),0) -> 0 | U16: FALSE
B17: =IF('Project Information'!D33=0,"",'Project Information'!D33) ->  | J17: =ROUNDUP(IF(I17=$AH$6,E17/1.5,IF(I17=$AH$7,E17/3,IF(I17=$AH$8,E17/4.5,IF(I17=$AH$9,K17,0)))),) -> 0 | L17: =E17/1.5-J17 -> 0 | R17: =IFERROR(ROUNDUP(IF(Q17=$AF$6,1,IF(Q17=$AF$7,2,IF(Q17=$AF$8,IF(P17=$AF$3,E17/VLOOKUP(O17,'Art. List'!I7:K17,2,FALSE),IF('Input Form'!P17='Input Form'!$AF$4,'Input Form'!E17/VLOOKUP('Input Form'!O17,'Art. List'!$I$5:$K$15,3,FALSE),0)),$AH$15))),0),0) -> 0 | U17: FALSE
B18: =IF('Project Information'!D34=0,"",'Project Information'!D34) ->  | J18: 0 | L18: 0 | R18: =IFERROR(ROUNDUP(IF(Q18=$AF$6,1,IF(Q18=$AF$7,2,IF(Q18=$AF$8,IF(P18=$AF$3,E18/VLOOKUP(O18,'Art. List'!I8:K18,2,FALSE),IF('Input Form'!P18='Input Form'!$AF$4,'Input Form'!E18/VLOOKUP('Input Form'!O18,'Art. List'!$I$5:$K$15,3,FALSE),0)),$AH$15))),0),0) -> 0 | U18: FALSE
B19: =IF('Project Information'!D35=0,"",'Project Information'!D35) ->  | J19: 0 | L19: 0 | R19: =IFERROR(ROUNDUP(IF(Q19=$AF$6,1,IF(Q19=$AF$7,2,IF(Q19=$AF$8,IF(P19=$AF$3,E19/VLOOKUP(O19,'Art. List'!I9:K19,2,FALSE),IF('Input Form'!P19='Input Form'!$AF$4,'Input Form'!E19/VLOOKUP('Input Form'!O19,'Art. List'!$I$5:$K$15,3,FALSE),0)),$AH$15))),0),0) -> 0 | U19: FALSE
B20: =IF('Project Information'!D36=0,"",'Project Information'!D36) ->  | J20: 0 | L20: =E20/1.5-J20 -> 0 | R20: =IFERROR(ROUNDUP(IF(Q20=$AF$6,1,IF(Q20=$AF$7,2,IF(Q20=$AF$8,IF(P20=$AF$3,E20/VLOOKUP(O20,'Art. List'!I10:K20,2,FALSE),IF('Input Form'!P20='Input Form'!$AF$4,'Input Form'!E20/VLOOKUP('Input Form'!O20,'Art. List'!$I$5:$K$15,3,FALSE),0)),$AH$15))),0),0) -> 0 | U20: FALSE
B21: =IF('Project Information'!D37=0,"",'Project Information'!D37) ->  | J21: 0 | L21: =E21/1.5-J21 -> 0 | R21: =IFERROR(ROUNDUP(IF(Q21=$AF$6,1,IF(Q21=$AF$7,2,IF(Q21=$AF$8,IF(P21=$AF$3,E21/VLOOKUP(O21,'Art. List'!I11:K21,2,FALSE),IF('Input Form'!P21='Input Form'!$AF$4,'Input Form'!E21/VLOOKUP('Input Form'!O21,'Art. List'!$I$5:$K$15,3,FALSE),0)),$AH$15))),0),0) -> 0 | U21: FALSE
B22: =IF('Project Information'!D38=0,"",'Project Information'!D38) ->  | J22: 0 | L22: =E22/1.5-J22 -> 0 | R22: =IFERROR(ROUNDUP(IF(Q22=$AF$6,1,IF(Q22=$AF$7,2,IF(Q22=$AF$8,IF(P22=$AF$3,E22/VLOOKUP(O22,'Art. List'!I12:K22,2,FALSE),IF('Input Form'!P22='Input Form'!$AF$4,'Input Form'!E22/VLOOKUP('Input Form'!O22,'Art. List'!$I$5:$K$15,3,FALSE),0)),$AH$15))),0),0) -> 0 | U22: FALSE
B23: =IF('Project Information'!D39=0,"",'Project Information'!D39) ->  | J23: 0 | L23: =E23/1.5-J23 -> 0 | R23: =IFERROR(ROUNDUP(IF(Q23=$AF$6,1,IF(Q23=$AF$7,2,IF(Q23=$AF$8,IF(P23=$AF$3,E23/VLOOKUP(O23,'Art. List'!I13:K23,2,FALSE),IF('Input Form'!P23='Input Form'!$AF$4,'Input Form'!E23/VLOOKUP('Input Form'!O23,'Art. List'!$I$5:$K$15,3,FALSE),0)),$AH$15))),0),0) -> 0 | U23: FALSE
B24: =IF('Project Information'!D40=0,"",'Project Information'!D40) ->  | J24: 0 | L24: =E24/1.5-J24 -> 0 | R24: =IFERROR(ROUNDUP(IF(Q24=$AF$6,1,IF(Q24=$AF$7,2,IF(Q24=$AF$8,IF(P24=$AF$3,E24/VLOOKUP(O24,'Art. List'!I14:K24,2,FALSE),IF('Input Form'!P24='Input Form'!$AF$4,'Input Form'!E24/VLOOKUP('Input Form'!O24,'Art. List'!$I$5:$K$15,3,FALSE),0)),$AH$15))),0),0) -> 0 | U24: FALSE
B25: =IF('Project Information'!D41=0,"",'Project Information'!D41) ->  | J25: 0 | L25: 0 | R25: =IFERROR(ROUNDUP(IF(Q25=$AF$6,1,IF(Q25=$AF$7,2,IF(Q25=$AF$8,IF(P25=$AF$3,E25/VLOOKUP(O25,'Art. List'!I15:K25,2,FALSE),IF('Input Form'!P25='Input Form'!$AF$4,'Input Form'!E25/VLOOKUP('Input Form'!O25,'Art. List'!$I$5:$K$15,3,FALSE),0)),$AH$15))),0),0) -> 0 | U25: FALSE
B26: =IF('Project Information'!D42=0,"",'Project Information'!D42) ->  | J26: 0 | L26: 0 | R26: =IFERROR(ROUNDUP(IF(Q26=$AF$6,1,IF(Q26=$AF$7,2,IF(Q26=$AF$8,IF(P26=$AF$3,E26/VLOOKUP(O26,'Art. List'!I16:K26,2,FALSE),IF('Input Form'!P26='Input Form'!$AF$4,'Input Form'!E26/VLOOKUP('Input Form'!O26,'Art. List'!$I$5:$K$15,3,FALSE),0)),$AH$15))),0),0) -> 0 | U26: FALSE
B27: =IF('Project Information'!D43=0,"",'Project Information'!D43) ->  | J27: 0 | L27: 0 | R27: =IFERROR(ROUNDUP(IF(Q27=$AF$6,1,IF(Q27=$AF$7,2,IF(Q27=$AF$8,IF(P27=$AF$3,E27/VLOOKUP(O27,'Art. List'!I17:K27,2,FALSE),IF('Input Form'!P27='Input Form'!$AF$4,'Input Form'!E27/VLOOKUP('Input Form'!O27,'Art. List'!$I$5:$K$15,3,FALSE),0)),$AH$15))),0),0) -> 0 | U27: FALSE
B28: =IF('Project Information'!D44=0,"",'Project Information'!D44) ->  | J28: 0 | L28: 0 | R28: =IFERROR(ROUNDUP(IF(Q28=$AF$6,1,IF(Q28=$AF$7,2,IF(Q28=$AF$8,IF(P28=$AF$3,E28/VLOOKUP(O28,'Art. List'!I18:K28,2,FALSE),IF('Input Form'!P28='Input Form'!$AF$4,'Input Form'!E28/VLOOKUP('Input Form'!O28,'Art. List'!$I$5:$K$15,3,FALSE),0)),$AH$15))),0),0) -> 0 | U28: FALSE
B29: =IF('Project Information'!D45=0,"",'Project Information'!D45) ->  | J29: 0 | L29: 0 | R29: =IFERROR(ROUNDUP(IF(Q29=$AF$6,1,IF(Q29=$AF$7,2,IF(Q29=$AF$8,IF(P29=$AF$3,E29/VLOOKUP(O29,'Art. List'!I19:K29,2,FALSE),IF('Input Form'!P29='Input Form'!$AF$4,'Input Form'!E29/VLOOKUP('Input Form'!O29,'Art. List'!$I$5:$K$15,3,FALSE),0)),$AH$15))),0),0) -> 0 | U29: FALSE
B30: =IF('Project Information'!D46=0,"",'Project Information'!D46) ->  | J30: 0 | L30: 0 | R30: =IFERROR(ROUNDUP(IF(Q30=$AF$6,1,IF(Q30=$AF$7,2,IF(Q30=$AF$8,IF(P30=$AF$3,E30/VLOOKUP(O30,'Art. List'!I20:K30,2,FALSE),IF('Input Form'!P30='Input Form'!$AF$4,'Input Form'!E30/VLOOKUP('Input Form'!O30,'Art. List'!$I$5:$K$15,3,FALSE),0)),$AH$15))),0),0) -> 0 | U30: FALSE
B31: =IF('Project Information'!D47=0,"",'Project Information'!D47) ->  | J31: 0 | L31: 0 | R31: =IFERROR(ROUNDUP(IF(Q31=$AF$6,1,IF(Q31=$AF$7,2,IF(Q31=$AF$8,IF(P31=$AF$3,E31/VLOOKUP(O31,'Art. List'!I21:K31,2,FALSE),IF('Input Form'!P31='Input Form'!$AF$4,'Input Form'!E31/VLOOKUP('Input Form'!O31,'Art. List'!$I$5:$K$15,3,FALSE),0)),$AH$15))),0),0) -> 0 | U31: FALSE
B32: =IF('Project Information'!D48=0,"",'Project Information'!D48) ->  | J32: 0 | L32: 0 | R32: =IFERROR(ROUNDUP(IF(Q32=$AF$6,1,IF(Q32=$AF$7,2,IF(Q32=$AF$8,IF(P32=$AF$3,E32/VLOOKUP(O32,'Art. List'!I22:K32,2,FALSE),IF('Input Form'!P32='Input Form'!$AF$4,'Input Form'!E32/VLOOKUP('Input Form'!O32,'Art. List'!$I$5:$K$15,3,FALSE),0)),$AH$15))),0),0) -> 0 | U32: FALSE
B33: =IF('Project Information'!D49=0,"",'Project Information'!D49) ->  | J33: 0 | L33: 0 | R33: =IFERROR(ROUNDUP(IF(Q33=$AF$6,1,IF(Q33=$AF$7,2,IF(Q33=$AF$8,IF(P33=$AF$3,E33/VLOOKUP(O33,'Art. List'!I23:K33,2,FALSE),IF('Input Form'!P33='Input Form'!$AF$4,'Input Form'!E33/VLOOKUP('Input Form'!O33,'Art. List'!$I$5:$K$15,3,FALSE),0)),$AH$15))),0),0) -> 0 | U33: FALSE
B34: =IF('Project Information'!D50=0,"",'Project Information'!D50) ->  | J34: 0 | L34: 0 | R34: =IFERROR(ROUNDUP(IF(Q34=$AF$6,1,IF(Q34=$AF$7,2,IF(Q34=$AF$8,IF(P34=$AF$3,E34/VLOOKUP(O34,'Art. List'!I24:K34,2,FALSE),IF('Input Form'!P34='Input Form'!$AF$4,'Input Form'!E34/VLOOKUP('Input Form'!O34,'Art. List'!$I$5:$K$15,3,FALSE),0)),$AH$15))),0),0) -> 0 | U34: FALSE
B35: =IF('Project Information'!D51=0,"",'Project Information'!D51) ->  | J35: 0 | L35: 0 | R35: =IFERROR(ROUNDUP(IF(Q35=$AF$6,1,IF(Q35=$AF$7,2,IF(Q35=$AF$8,IF(P35=$AF$3,E35/VLOOKUP(O35,'Art. List'!I25:K35,2,FALSE),IF('Input Form'!P35='Input Form'!$AF$4,'Input Form'!E35/VLOOKUP('Input Form'!O35,'Art. List'!$I$5:$K$15,3,FALSE),0)),$AH$15))),0),0) -> 0 | U35: FALSE
B36: =IF('Project Information'!D52=0,"",'Project Information'!D52) ->  | J36: 0 | L36: 0 | R36: =IFERROR(ROUNDUP(IF(Q36=$AF$6,1,IF(Q36=$AF$7,2,IF(Q36=$AF$8,IF(P36=$AF$3,E36/VLOOKUP(O36,'Art. List'!I26:K36,2,FALSE),IF('Input Form'!P36='Input Form'!$AF$4,'Input Form'!E36/VLOOKUP('Input Form'!O36,'Art. List'!$I$5:$K$15,3,FALSE),0)),$AH$15))),0),0) -> 0 | U36: FALSE
B37: =IF('Project Information'!D53=0,"",'Project Information'!D53) ->  | J37: 0 | L37: 0 | R37: =IFERROR(ROUNDUP(IF(Q37=$AF$6,1,IF(Q37=$AF$7,2,IF(Q37=$AF$8,IF(P37=$AF$3,E37/VLOOKUP(O37,'Art. List'!I27:K37,2,FALSE),IF('Input Form'!P37='Input Form'!$AF$4,'Input Form'!E37/VLOOKUP('Input Form'!O37,'Art. List'!$I$5:$K$15,3,FALSE),0)),$AH$15))),0),0) -> 0 | U37: FALSE
B38: =IF('Project Information'!D54=0,"",'Project Information'!D54) ->  | J38: 0 | L38: 0 | R38: =IFERROR(ROUNDUP(IF(Q38=$AF$6,1,IF(Q38=$AF$7,2,IF(Q38=$AF$8,IF(P38=$AF$3,E38/VLOOKUP(O38,'Art. List'!I28:K38,2,FALSE),IF('Input Form'!P38='Input Form'!$AF$4,'Input Form'!E38/VLOOKUP('Input Form'!O38,'Art. List'!$I$5:$K$15,3,FALSE),0)),$AH$15))),0),0) -> 0 | U38: FALSE
B39: =IF('Project Information'!D55=0,"",'Project Information'!D55) ->  | J39: 0 | L39: 0 | R39: =IFERROR(ROUNDUP(IF(Q39=$AF$6,1,IF(Q39=$AF$7,2,IF(Q39=$AF$8,IF(P39=$AF$3,E39/VLOOKUP(O39,'Art. List'!I29:K39,2,FALSE),IF('Input Form'!P39='Input Form'!$AF$4,'Input Form'!E39/VLOOKUP('Input Form'!O39,'Art. List'!$I$5:$K$15,3,FALSE),0)),$AH$15))),0),0) -> 0 | U39: FALSE
B40: =IF('Project Information'!D56=0,"",'Project Information'!D56) ->  | J40: 0 | L40: 0 | R40: =IFERROR(ROUNDUP(IF(Q40=$AF$6,1,IF(Q40=$AF$7,2,IF(Q40=$AF$8,IF(P40=$AF$3,E40/VLOOKUP(O40,'Art. List'!I30:K40,2,FALSE),IF('Input Form'!P40='Input Form'!$AF$4,'Input Form'!E40/VLOOKUP('Input Form'!O40,'Art. List'!$I$5:$K$15,3,FALSE),0)),$AH$15))),0),0) -> 0 | U40: TRUE
A41: x | B41: =IF('Project Information'!D57=0,"",'Project Information'!D57) ->  | J41: 0 | L41: 0 | R41: =IFERROR(ROUNDUP(IF(Q41=$AF$6,1,IF(Q41=$AF$7,2,IF(Q41=$AF$8,IF(P41=$AF$3,E41/VLOOKUP(O41,'Art. List'!I31:K41,2,FALSE),IF('Input Form'!P41='Input Form'!$AF$4,'Input Form'!E41/VLOOKUP('Input Form'!O41,'Art. List'!$I$5:$K$15,3,FALSE),0)),$AH$15))),0),0) -> 0 | U41: TRUE
B42: =IF('Project Information'!D58=0,"",'Project Information'!D58) ->  | J42: 0 | L42: 0 | R42: =IFERROR(ROUNDUP(IF(Q42=$AF$6,1,IF(Q42=$AF$7,2,IF(Q42=$AF$8,IF(P42=$AF$3,E42/VLOOKUP(O42,'Art. List'!I32:K42,2,FALSE),IF('Input Form'!P42='Input Form'!$AF$4,'Input Form'!E42/VLOOKUP('Input Form'!O42,'Art. List'!$I$5:$K$15,3,FALSE),0)),$AH$15))),0),0) -> 0 | U42: FALSE
A43: x | B43: =IF('Project Information'!D59=0,"",'Project Information'!D59) ->  | J43: 0 | L43: 0 | R43: =IFERROR(ROUNDUP(IF(Q43=$AF$6,1,IF(Q43=$AF$7,2,IF(Q43=$AF$8,IF(P43=$AF$3,E43/VLOOKUP(O43,'Art. List'!I33:K43,2,FALSE),IF('Input Form'!P43='Input Form'!$AF$4,'Input Form'!E43/VLOOKUP('Input Form'!O43,'Art. List'!$I$5:$K$15,3,FALSE),0)),$AH$15))),0),0) -> 0 | U43: FALSE
B44: =IF('Project Information'!D60=0,"",'Project Information'!D60) ->  | J44: 0 | L44: 0 | R44: =IFERROR(ROUNDUP(IF(Q44=$AF$6,1,IF(Q44=$AF$7,2,IF(Q44=$AF$8,IF(P44=$AF$3,E44/VLOOKUP(O44,'Art. List'!I34:K44,2,FALSE),IF('Input Form'!P44='Input Form'!$AF$4,'Input Form'!E44/VLOOKUP('Input Form'!O44,'Art. List'!$I$5:$K$15,3,FALSE),0)),$AH$15))),0),0) -> 0 | U44: TRUE
B45: =IF('Project Information'!D61=0,"",'Project Information'!D61) ->  | J45: 0 | L45: 0 | R45: =IFERROR(ROUNDUP(IF(Q45=$AF$6,1,IF(Q45=$AF$7,2,IF(Q45=$AF$8,IF(P45=$AF$3,E45/VLOOKUP(O45,'Art. List'!I35:K45,2,FALSE),IF('Input Form'!P45='Input Form'!$AF$4,'Input Form'!E45/VLOOKUP('Input Form'!O45,'Art. List'!$I$5:$K$15,3,FALSE),0)),$AH$15))),0),0) -> 0 | U45: TRUE
B46: =IF('Project Information'!D62=0,"",'Project Information'!D62) ->  | J46: 0 | L46: 0 | R46: =IFERROR(ROUNDUP(IF(Q46=$AF$6,1,IF(Q46=$AF$7,2,IF(Q46=$AF$8,IF(P46=$AF$3,E46/VLOOKUP(O46,'Art. List'!I36:K46,2,FALSE),IF('Input Form'!P46='Input Form'!$AF$4,'Input Form'!E46/VLOOKUP('Input Form'!O46,'Art. List'!$I$5:$K$15,3,FALSE),0)),$AH$15))),0),0) -> 0 | U46: TRUE
B47: =IF('Project Information'!D63=0,"",'Project Information'!D63) ->  | J47: =ROUNDUP(IF(I47=$AH$6,E47/1.5,IF(I47=$AH$7,E47/3,IF(I47=$AH$8,E47/4.5,IF(I47=$AH$9,K47,0)))),) -> 0 | L47: 0 | R47: =IFERROR(ROUNDUP(IF(Q47=$AF$6,1,IF(Q47=$AF$7,2,IF(Q47=$AF$8,IF(P47=$AF$3,E47/VLOOKUP(O47,'Art. List'!I37:K47,2,FALSE),IF('Input Form'!P47='Input Form'!$AF$4,'Input Form'!E47/VLOOKUP('Input Form'!O47,'Art. List'!$I$5:$K$15,3,FALSE),0)),$AH$15))),0),0) -> 0 | U47: TRUE
B48: =IF('Project Information'!D64=0,"",'Project Information'!D64) ->  | J48: 0 | L48: 0 | R48: =IFERROR(ROUNDUP(IF(Q48=$AF$6,1,IF(Q48=$AF$7,2,IF(Q48=$AF$8,IF(P48=$AF$3,E48/VLOOKUP(O48,'Art. List'!I38:K48,2,FALSE),IF('Input Form'!P48='Input Form'!$AF$4,'Input Form'!E48/VLOOKUP('Input Form'!O48,'Art. List'!$I$5:$K$15,3,FALSE),0)),$AH$15))),0),0) -> 0 | U48: FALSE
B49: =IF('Project Information'!D65=0,"",'Project Information'!D65) ->  | J49: 0 | L49: 0 | R49: =IFERROR(ROUNDUP(IF(Q49=$AF$6,1,IF(Q49=$AF$7,2,IF(Q49=$AF$8,IF(P49=$AF$3,E49/VLOOKUP(O49,'Art. List'!I39:K49,2,FALSE),IF('Input Form'!P49='Input Form'!$AF$4,'Input Form'!E49/VLOOKUP('Input Form'!O49,'Art. List'!$I$5:$K$15,3,FALSE),0)),$AH$15))),0),0) -> 0 | U49: TRUE
B50: =IF('Project Information'!D66=0,"",'Project Information'!D66) ->  | J50: 0 | L50: 0 | R50: =IFERROR(ROUNDUP(IF(Q50=$AF$6,1,IF(Q50=$AF$7,2,IF(Q50=$AF$8,IF(P50=$AF$3,E50/VLOOKUP(O50,'Art. List'!I40:K50,2,FALSE),IF('Input Form'!P50='Input Form'!$AF$4,'Input Form'!E50/VLOOKUP('Input Form'!O50,'Art. List'!$I$5:$K$15,3,FALSE),0)),$AH$15))),0),0) -> 0 | U50: TRUE
B51: =IF('Project Information'!D67=0,"",'Project Information'!D67) ->  | J51: 0 | L51: 0 | R51: =IFERROR(ROUNDUP(IF(Q51=$AF$6,1,IF(Q51=$AF$7,2,IF(Q51=$AF$8,IF(P51=$AF$3,E51/VLOOKUP(O51,'Art. List'!I41:K51,2,FALSE),IF('Input Form'!P51='Input Form'!$AF$4,'Input Form'!E51/VLOOKUP('Input Form'!O51,'Art. List'!$I$5:$K$15,3,FALSE),0)),$AH$15))),0),0) -> 0 | U51: FALSE
B52: =IF('Project Information'!D68=0,"",'Project Information'!D68) ->  | J52: 0 | L52: 0 | R52: =IFERROR(ROUNDUP(IF(Q52=$AF$6,1,IF(Q52=$AF$7,2,IF(Q52=$AF$8,IF(P52=$AF$3,E52/VLOOKUP(O52,'Art. List'!I42:K52,2,FALSE),IF('Input Form'!P52='Input Form'!$AF$4,'Input Form'!E52/VLOOKUP('Input Form'!O52,'Art. List'!$I$5:$K$15,3,FALSE),0)),$AH$15))),0),0) -> 0 | U52: TRUE
B53: =IF('Project Information'!D69=0,"",'Project Information'!D69) ->  | J53: 0 | L53: 0 | R53: =IFERROR(ROUNDUP(IF(Q53=$AF$6,1,IF(Q53=$AF$7,2,IF(Q53=$AF$8,IF(P53=$AF$3,E53/VLOOKUP(O53,'Art. List'!I43:K53,2,FALSE),IF('Input Form'!P53='Input Form'!$AF$4,'Input Form'!E53/VLOOKUP('Input Form'!O53,'Art. List'!$I$5:$K$15,3,FALSE),0)),$AH$15))),0),0) -> 0 | U53: TRUE
B54: =IF('Project Information'!D70=0,"",'Project Information'!D70) ->  | J54: 0 | L54: 0 | R54: =IFERROR(ROUNDUP(IF(Q54=$AF$6,1,IF(Q54=$AF$7,2,IF(Q54=$AF$8,IF(P54=$AF$3,E54/VLOOKUP(O54,'Art. List'!I44:K54,2,FALSE),IF('Input Form'!P54='Input Form'!$AF$4,'Input Form'!E54/VLOOKUP('Input Form'!O54,'Art. List'!$I$5:$K$15,3,FALSE),0)),$AH$15))),0),0) -> 0 | U54: TRUE
B55: =IF('Project Information'!D71=0,"",'Project Information'!D71) ->  | J55: 0 | L55: 0 | R55: =IFERROR(ROUNDUP(IF(Q55=$AF$6,1,IF(Q55=$AF$7,2,IF(Q55=$AF$8,IF(P55=$AF$3,E55/VLOOKUP(O55,'Art. List'!I45:K55,2,FALSE),IF('Input Form'!P55='Input Form'!$AF$4,'Input Form'!E55/VLOOKUP('Input Form'!O55,'Art. List'!$I$5:$K$15,3,FALSE),0)),$AH$15))),0),0) -> 0
B56: =IF('Project Information'!D72=0,"",'Project Information'!D72) ->  | J56: 0 | L56: 0 | R56: =IFERROR(ROUNDUP(IF(Q56=$AF$6,1,IF(Q56=$AF$7,2,IF(Q56=$AF$8,IF(P56=$AF$3,E56/VLOOKUP(O56,'Art. List'!I46:K56,2,FALSE),IF('Input Form'!P56='Input Form'!$AF$4,'Input Form'!E56/VLOOKUP('Input Form'!O56,'Art. List'!$I$5:$K$15,3,FALSE),0)),$AH$15))),0),0) -> 0
B57: =IF('Project Information'!D73=0,"",'Project Information'!D73) ->  | J57: 0 | L57: 0 | R57: =IFERROR(ROUNDUP(IF(Q57=$AF$6,1,IF(Q57=$AF$7,2,IF(Q57=$AF$8,IF(P57=$AF$3,E57/VLOOKUP(O57,'Art. List'!I47:K57,2,FALSE),IF('Input Form'!P57='Input Form'!$AF$4,'Input Form'!E57/VLOOKUP('Input Form'!O57,'Art. List'!$I$5:$K$15,3,FALSE),0)),$AH$15))),0),0) -> 0
B58: =IF('Project Information'!D74=0,"",'Project Information'!D74) ->  | J58: 0 | L58: 0 | R58: =IFERROR(ROUNDUP(IF(Q58=$AF$6,1,IF(Q58=$AF$7,2,IF(Q58=$AF$8,IF(P58=$AF$3,E58/VLOOKUP(O58,'Art. List'!I48:K58,2,FALSE),IF('Input Form'!P58='Input Form'!$AF$4,'Input Form'!E58/VLOOKUP('Input Form'!O58,'Art. List'!$I$5:$K$15,3,FALSE),0)),$AH$15))),0),0) -> 0
B59: =IF('Project Information'!D75=0,"",'Project Information'!D75) ->  | J59: 0 | L59: 0 | R59: =IFERROR(ROUNDUP(IF(Q59=$AF$6,1,IF(Q59=$AF$7,2,IF(Q59=$AF$8,IF(P59=$AF$3,E59/VLOOKUP(O59,'Art. List'!I49:K59,2,FALSE),IF('Input Form'!P59='Input Form'!$AF$4,'Input Form'!E59/VLOOKUP('Input Form'!O59,'Art. List'!$I$5:$K$15,3,FALSE),0)),$AH$15))),0),0) -> 0
B60: =IF('Project Information'!D76=0,"",'Project Information'!D76) ->  | J60: 0 | L60: 0 | R60: =IFERROR(ROUNDUP(IF(Q60=$AF$6,1,IF(Q60=$AF$7,2,IF(Q60=$AF$8,IF(P60=$AF$3,E60/VLOOKUP(O60,'Art. List'!I50:K60,2,FALSE),IF('Input Form'!P60='Input Form'!$AF$4,'Input Form'!E60/VLOOKUP('Input Form'!O60,'Art. List'!$I$5:$K$15,3,FALSE),0)),$AH$15))),0),0) -> 0
B61: =IF('Project Information'!D77=0,"",'Project Information'!D77) ->  | J61: 0 | L61: 0 | R61: =IFERROR(ROUNDUP(IF(Q61=$AF$6,1,IF(Q61=$AF$7,2,IF(Q61=$AF$8,IF(P61=$AF$3,E61/VLOOKUP(O61,'Art. List'!I51:K61,2,FALSE),IF('Input Form'!P61='Input Form'!$AF$4,'Input Form'!E61/VLOOKUP('Input Form'!O61,'Art. List'!$I$5:$K$15,3,FALSE),0)),$AH$15))),0),0) -> 0
B62: =IF('Project Information'!D78=0,"",'Project Information'!D78) ->  | J62: 0 | L62: 0 | R62: =IFERROR(ROUNDUP(IF(Q62=$AF$6,1,IF(Q62=$AF$7,2,IF(Q62=$AF$8,IF(P62=$AF$3,E62/VLOOKUP(O62,'Art. List'!I52:K62,2,FALSE),IF('Input Form'!P62='Input Form'!$AF$4,'Input Form'!E62/VLOOKUP('Input Form'!O62,'Art. List'!$I$5:$K$15,3,FALSE),0)),$AH$15))),0),0) -> 0
B63: =IF('Project Information'!D79=0,"",'Project Information'!D79) ->  | J63: 0 | L63: 0 | R63: =IFERROR(ROUNDUP(IF(Q63=$AF$6,1,IF(Q63=$AF$7,2,IF(Q63=$AF$8,IF(P63=$AF$3,E63/VLOOKUP(O63,'Art. List'!I53:K63,2,FALSE),IF('Input Form'!P63='Input Form'!$AF$4,'Input Form'!E63/VLOOKUP('Input Form'!O63,'Art. List'!$I$5:$K$15,3,FALSE),0)),$AH$15))),0),0) -> 0
B64: =IF('Project Information'!D80=0,"",'Project Information'!D80) ->  | J64: 0 | L64: 0 | R64: =IFERROR(ROUNDUP(IF(Q64=$AF$6,1,IF(Q64=$AF$7,2,IF(Q64=$AF$8,IF(P64=$AF$3,E64/VLOOKUP(O64,'Art. List'!I54:K64,2,FALSE),IF('Input Form'!P64='Input Form'!$AF$4,'Input Form'!E64/VLOOKUP('Input Form'!O64,'Art. List'!$I$5:$K$15,3,FALSE),0)),$AH$15))),0),0) -> 0
B65: =IF('Project Information'!D81=0,"",'Project Information'!D81) ->  | J65: 0 | L65: 0 | R65: =IFERROR(ROUNDUP(IF(Q65=$AF$6,1,IF(Q65=$AF$7,2,IF(Q65=$AF$8,IF(P65=$AF$3,E65/VLOOKUP(O65,'Art. List'!I55:K65,2,FALSE),IF('Input Form'!P65='Input Form'!$AF$4,'Input Form'!E65/VLOOKUP('Input Form'!O65,'Art. List'!$I$5:$K$15,3,FALSE),0)),$AH$15))),0),0) -> 0
B66: =IF('Project Information'!D82=0,"",'Project Information'!D82) ->  | J66: 0 | L66: 0 | R66: =IFERROR(ROUNDUP(IF(Q66=$AF$6,1,IF(Q66=$AF$7,2,IF(Q66=$AF$8,IF(P66=$AF$3,E66/VLOOKUP(O66,'Art. List'!I56:K66,2,FALSE),IF('Input Form'!P66='Input Form'!$AF$4,'Input Form'!E66/VLOOKUP('Input Form'!O66,'Art. List'!$I$5:$K$15,3,FALSE),0)),$AH$15))),0),0) -> 0
B67: =IF('Project Information'!D83=0,"",'Project Information'!D83) ->  | J67: 0 | L67: 0 | R67: =IFERROR(ROUNDUP(IF(Q67=$AF$6,1,IF(Q67=$AF$7,2,IF(Q67=$AF$8,IF(P67=$AF$3,E67/VLOOKUP(O67,'Art. List'!I57:K67,2,FALSE),IF('Input Form'!P67='Input Form'!$AF$4,'Input Form'!E67/VLOOKUP('Input Form'!O67,'Art. List'!$I$5:$K$15,3,FALSE),0)),$AH$15))),0),0) -> 0
B68: =IF('Project Information'!D84=0,"",'Project Information'!D84) ->  | J68: 0 | L68: 0 | R68: =IFERROR(ROUNDUP(IF(Q68=$AF$6,1,IF(Q68=$AF$7,2,IF(Q68=$AF$8,IF(P68=$AF$3,E68/VLOOKUP(O68,'Art. List'!I58:K68,2,FALSE),IF('Input Form'!P68='Input Form'!$AF$4,'Input Form'!E68/VLOOKUP('Input Form'!O68,'Art. List'!$I$5:$K$15,3,FALSE),0)),$AH$15))),0),0) -> 0
B69: =IF('Project Information'!D85=0,"",'Project Information'!D85) ->  | J69: 0 | L69: 0 | R69: =IFERROR(ROUNDUP(IF(Q69=$AF$6,1,IF(Q69=$AF$7,2,IF(Q69=$AF$8,IF(P69=$AF$3,E69/VLOOKUP(O69,'Art. List'!I59:K69,2,FALSE),IF('Input Form'!P69='Input Form'!$AF$4,'Input Form'!E69/VLOOKUP('Input Form'!O69,'Art. List'!$I$5:$K$15,3,FALSE),0)),$AH$15))),0),0) -> 0
B70: =IF('Project Information'!D86=0,"",'Project Information'!D86) ->  | J70: 0 | L70: 0 | R70: =IFERROR(ROUNDUP(IF(Q70=$AF$6,1,IF(Q70=$AF$7,2,IF(Q70=$AF$8,IF(P70=$AF$3,E70/VLOOKUP(O70,'Art. List'!I60:K70,2,FALSE),IF('Input Form'!P70='Input Form'!$AF$4,'Input Form'!E70/VLOOKUP('Input Form'!O70,'Art. List'!$I$5:$K$15,3,FALSE),0)),$AH$15))),0),0) -> 0
B71: =IF('Project Information'!D87=0,"",'Project Information'!D87) ->  | J71: 0 | L71: 0 | R71: =IFERROR(ROUNDUP(IF(Q71=$AF$6,1,IF(Q71=$AF$7,2,IF(Q71=$AF$8,IF(P71=$AF$3,E71/VLOOKUP(O71,'Art. List'!I61:K71,2,FALSE),IF('Input Form'!P71='Input Form'!$AF$4,'Input Form'!E71/VLOOKUP('Input Form'!O71,'Art. List'!$I$5:$K$15,3,FALSE),0)),$AH$15))),0),0) -> 0
B72: =IF('Project Information'!D88=0,"",'Project Information'!D88) ->  | J72: 0 | L72: 0 | R72: =IFERROR(ROUNDUP(IF(Q72=$AF$6,1,IF(Q72=$AF$7,2,IF(Q72=$AF$8,IF(P72=$AF$3,E72/VLOOKUP(O72,'Art. List'!I62:K72,2,FALSE),IF('Input Form'!P72='Input Form'!$AF$4,'Input Form'!E72/VLOOKUP('Input Form'!O72,'Art. List'!$I$5:$K$15,3,FALSE),0)),$AH$15))),0),0) -> 0
B73: =IF('Project Information'!D89=0,"",'Project Information'!D89) ->  | J73: 0 | L73: 0 | R73: =IFERROR(ROUNDUP(IF(Q73=$AF$6,1,IF(Q73=$AF$7,2,IF(Q73=$AF$8,IF(P73=$AF$3,E73/VLOOKUP(O73,'Art. List'!I63:K73,2,FALSE),IF('Input Form'!P73='Input Form'!$AF$4,'Input Form'!E73/VLOOKUP('Input Form'!O73,'Art. List'!$I$5:$K$15,3,FALSE),0)),$AH$15))),0),0) -> 0
B74: =IF('Project Information'!D90=0,"",'Project Information'!D90) ->  | J74: 0 | L74: 0 | R74: =IFERROR(ROUNDUP(IF(Q74=$AF$6,1,IF(Q74=$AF$7,2,IF(Q74=$AF$8,IF(P74=$AF$3,E74/VLOOKUP(O74,'Art. List'!I64:K74,2,FALSE),IF('Input Form'!P74='Input Form'!$AF$4,'Input Form'!E74/VLOOKUP('Input Form'!O74,'Art. List'!$I$5:$K$15,3,FALSE),0)),$AH$15))),0),0) -> 0
B75: =IF('Project Information'!D91=0,"",'Project Information'!D91) ->  | J75: 0 | L75: 0 | R75: =IFERROR(ROUNDUP(IF(Q75=$AF$6,1,IF(Q75=$AF$7,2,IF(Q75=$AF$8,IF(P75=$AF$3,E75/VLOOKUP(O75,'Art. List'!I65:K75,2,FALSE),IF('Input Form'!P75='Input Form'!$AF$4,'Input Form'!E75/VLOOKUP('Input Form'!O75,'Art. List'!$I$5:$K$15,3,FALSE),0)),$AH$15))),0),0) -> 0
B76: =IF('Project Information'!D92=0,"",'Project Information'!D92) ->  | J76: 0 | L76: 0 | R76: =IFERROR(ROUNDUP(IF(Q76=$AF$6,1,IF(Q76=$AF$7,2,IF(Q76=$AF$8,IF(P76=$AF$3,E76/VLOOKUP(O76,'Art. List'!I66:K76,2,FALSE),IF('Input Form'!P76='Input Form'!$AF$4,'Input Form'!E76/VLOOKUP('Input Form'!O76,'Art. List'!$I$5:$K$15,3,FALSE),0)),$AH$15))),0),0) -> 0
B77: =IF('Project Information'!D93=0,"",'Project Information'!D93) ->  | J77: 0 | L77: 0 | R77: =IFERROR(ROUNDUP(IF(Q77=$AF$6,1,IF(Q77=$AF$7,2,IF(Q77=$AF$8,IF(P77=$AF$3,E77/VLOOKUP(O77,'Art. List'!I67:K77,2,FALSE),IF('Input Form'!P77='Input Form'!$AF$4,'Input Form'!E77/VLOOKUP('Input Form'!O77,'Art. List'!$I$5:$K$15,3,FALSE),0)),$AH$15))),0),0) -> 0
B78: =IF('Project Information'!D94=0,"",'Project Information'!D94) ->  | J78: 0 | L78: 0 | R78: =IFERROR(ROUNDUP(IF(Q78=$AF$6,1,IF(Q78=$AF$7,2,IF(Q78=$AF$8,IF(P78=$AF$3,E78/VLOOKUP(O78,'Art. List'!I68:K78,2,FALSE),IF('Input Form'!P78='Input Form'!$AF$4,'Input Form'!E78/VLOOKUP('Input Form'!O78,'Art. List'!$I$5:$K$15,3,FALSE),0)),$AH$15))),0),0) -> 0
B79: =IF('Project Information'!D95=0,"",'Project Information'!D95) ->  | J79: =ROUNDUP(IF(I79=$AH$6,E79/1.5,IF(I79=$AH$7,E79/3,IF(I79=$AH$8,E79/4.5,IF(I79=$AH$9,K79,0)))),) -> 0 | L79: 0 | R79: =IFERROR(ROUNDUP(IF(Q79=$AF$6,1,IF(Q79=$AF$7,2,IF(Q79=$AF$8,IF(P79=$AF$3,E79/VLOOKUP(O79,'Art. List'!I69:K79,2,FALSE),IF('Input Form'!P79='Input Form'!$AF$4,'Input Form'!E79/VLOOKUP('Input Form'!O79,'Art. List'!$I$5:$K$15,3,FALSE),0)),$AH$15))),0),0) -> 0
B80: =IF('Project Information'!D96=0,"",'Project Information'!D96) ->  | J80: 0 | L80: 0 | M80: =IF(ISBLANK(I80),"",IF(I80=$AH$7,IF(RIGHT(E80/3-TRUNC(E80/3),1)="5",$AH$13,$AH$14),IF(I80=$AH$8,IF(RIGHT(E80/4.5-TRUNC(E80/4.5),1)="3",$AH$13,$AH$14),IF(I80=$AH$6,$AH$13,$AH$15)))) ->  | R80: =IFERROR(ROUNDUP(IF(Q80=$AF$6,1,IF(Q80=$AF$7,2,IF(Q80=$AF$8,IF(P80=$AF$3,E80/VLOOKUP(O80,'Art. List'!I70:K80,2,FALSE),IF('Input Form'!P80='Input Form'!$AF$4,'Input Form'!E80/VLOOKUP('Input Form'!O80,'Art. List'!$I$5:$K$15,3,FALSE),0)),$AH$15))),0),0) -> 0
B81: =IF('Project Information'!D97=0,"",'Project Information'!D97) ->  | J81: 0 | L81: =E81/1.5-J81 -> 0 | R81: =IFERROR(ROUNDUP(IF(Q81=$AF$6,1,IF(Q81=$AF$7,2,IF(Q81=$AF$8,IF(P81=$AF$3,E81/VLOOKUP(O81,'Art. List'!I71:K81,2,FALSE),IF('Input Form'!P81='Input Form'!$AF$4,'Input Form'!E81/VLOOKUP('Input Form'!O81,'Art. List'!$I$5:$K$15,3,FALSE),0)),$AH$15))),0),0) -> 0
B82: =IF('Project Information'!D98=0,"",'Project Information'!D98) ->  | J82: 0 | L82: 0 | R82: =IFERROR(ROUNDUP(IF(Q82=$AF$6,1,IF(Q82=$AF$7,2,IF(Q82=$AF$8,IF(P82=$AF$3,E82/VLOOKUP(O82,'Art. List'!I72:K82,2,FALSE),IF('Input Form'!P82='Input Form'!$AF$4,'Input Form'!E82/VLOOKUP('Input Form'!O82,'Art. List'!$I$5:$K$15,3,FALSE),0)),$AH$15))),0),0) -> 0
B83: =IF('Project Information'!D99=0,"",'Project Information'!D99) ->  | J83: 0 | L83: 0 | R83: =IFERROR(ROUNDUP(IF(Q83=$AF$6,1,IF(Q83=$AF$7,2,IF(Q83=$AF$8,IF(P83=$AF$3,E83/VLOOKUP(O83,'Art. List'!I73:K83,2,FALSE),IF('Input Form'!P83='Input Form'!$AF$4,'Input Form'!E83/VLOOKUP('Input Form'!O83,'Art. List'!$I$5:$K$15,3,FALSE),0)),$AH$15))),0),0) -> 0
B84: =IF('Project Information'!D100=0,"",'Project Information'!D100) ->  | J84: 0 | L84: 0 | R84: =IFERROR(ROUNDUP(IF(Q84=$AF$6,1,IF(Q84=$AF$7,2,IF(Q84=$AF$8,IF(P84=$AF$3,E84/VLOOKUP(O84,'Art. List'!I74:K84,2,FALSE),IF('Input Form'!P84='Input Form'!$AF$4,'Input Form'!E84/VLOOKUP('Input Form'!O84,'Art. List'!$I$5:$K$15,3,FALSE),0)),$AH$15))),0),0) -> 0
B85: =IF('Project Information'!D101=0,"",'Project Information'!D101) ->  | J85: 0 | L85: 0 | R85: =IFERROR(ROUNDUP(IF(Q85=$AF$6,1,IF(Q85=$AF$7,2,IF(Q85=$AF$8,IF(P85=$AF$3,E85/VLOOKUP(O85,'Art. List'!I75:K85,2,FALSE),IF('Input Form'!P85='Input Form'!$AF$4,'Input Form'!E85/VLOOKUP('Input Form'!O85,'Art. List'!$I$5:$K$15,3,FALSE),0)),$AH$15))),0),0) -> 0
B86: =IF('Project Information'!D102=0,"",'Project Information'!D102) ->  | J86: 0 | L86: 0 | R86: =IFERROR(ROUNDUP(IF(Q86=$AF$6,1,IF(Q86=$AF$7,2,IF(Q86=$AF$8,IF(P86=$AF$3,E86/VLOOKUP(O86,'Art. List'!I76:K86,2,FALSE),IF('Input Form'!P86='Input Form'!$AF$4,'Input Form'!E86/VLOOKUP('Input Form'!O86,'Art. List'!$I$5:$K$15,3,FALSE),0)),$AH$15))),0),0) -> 0
B87: =IF('Project Information'!D103=0,"",'Project Information'!D103) ->  | J87: 0 | L87: 0 | R87: =IFERROR(ROUNDUP(IF(Q87=$AF$6,1,IF(Q87=$AF$7,2,IF(Q87=$AF$8,IF(P87=$AF$3,E87/VLOOKUP(O87,'Art. List'!I77:K87,2,FALSE),IF('Input Form'!P87='Input Form'!$AF$4,'Input Form'!E87/VLOOKUP('Input Form'!O87,'Art. List'!$I$5:$K$15,3,FALSE),0)),$AH$15))),0),0) -> 0
B88: =IF('Project Information'!D104=0,"",'Project Information'!D104) ->  | J88: 0 | L88: 0 | R88: =IFERROR(ROUNDUP(IF(Q88=$AF$6,1,IF(Q88=$AF$7,2,IF(Q88=$AF$8,IF(P88=$AF$3,E88/VLOOKUP(O88,'Art. List'!I78:K88,2,FALSE),IF('Input Form'!P88='Input Form'!$AF$4,'Input Form'!E88/VLOOKUP('Input Form'!O88,'Art. List'!$I$5:$K$15,3,FALSE),0)),$AH$15))),0),0) -> 0
B89: =IF('Project Information'!D105=0,"",'Project Information'!D105) ->  | J89: 0 | L89: 0 | R89: =IFERROR(ROUNDUP(IF(Q89=$AF$6,1,IF(Q89=$AF$7,2,IF(Q89=$AF$8,IF(P89=$AF$3,E89/VLOOKUP(O89,'Art. List'!I79:K89,2,FALSE),IF('Input Form'!P89='Input Form'!$AF$4,'Input Form'!E89/VLOOKUP('Input Form'!O89,'Art. List'!$I$5:$K$15,3,FALSE),0)),$AH$15))),0),0) -> 0
B90: =IF('Project Information'!D106=0,"",'Project Information'!D106) ->  | J90: 0 | L90: 0 | R90: =IFERROR(ROUNDUP(IF(Q90=$AF$6,1,IF(Q90=$AF$7,2,IF(Q90=$AF$8,IF(P90=$AF$3,E90/VLOOKUP(O90,'Art. List'!I80:K90,2,FALSE),IF('Input Form'!P90='Input Form'!$AF$4,'Input Form'!E90/VLOOKUP('Input Form'!O90,'Art. List'!$I$5:$K$15,3,FALSE),0)),$AH$15))),0),0) -> 0
B91: =IF('Project Information'!D107=0,"",'Project Information'!D107) ->  | J91: 0 | L91: 0 | R91: =IFERROR(ROUNDUP(IF(Q91=$AF$6,1,IF(Q91=$AF$7,2,IF(Q91=$AF$8,IF(P91=$AF$3,E91/VLOOKUP(O91,'Art. List'!I81:K91,2,FALSE),IF('Input Form'!P91='Input Form'!$AF$4,'Input Form'!E91/VLOOKUP('Input Form'!O91,'Art. List'!$I$5:$K$15,3,FALSE),0)),$AH$15))),0),0) -> 0
B92: =IF('Project Information'!D108=0,"",'Project Information'!D108) ->  | J92: 0 | L92: 0 | R92: =IFERROR(ROUNDUP(IF(Q92=$AF$6,1,IF(Q92=$AF$7,2,IF(Q92=$AF$8,IF(P92=$AF$3,E92/VLOOKUP(O92,'Art. List'!I82:K92,2,FALSE),IF('Input Form'!P92='Input Form'!$AF$4,'Input Form'!E92/VLOOKUP('Input Form'!O92,'Art. List'!$I$5:$K$15,3,FALSE),0)),$AH$15))),0),0) -> 0
B93: =IF('Project Information'!D109=0,"",'Project Information'!D109) ->  | J93: 0 | L93: 0 | R93: =IFERROR(ROUNDUP(IF(Q93=$AF$6,1,IF(Q93=$AF$7,2,IF(Q93=$AF$8,IF(P93=$AF$3,E93/VLOOKUP(O93,'Art. List'!I83:K93,2,FALSE),IF('Input Form'!P93='Input Form'!$AF$4,'Input Form'!E93/VLOOKUP('Input Form'!O93,'Art. List'!$I$5:$K$15,3,FALSE),0)),$AH$15))),0),0) -> 0
B94: =IF('Project Information'!D110=0,"",'Project Information'!D110) ->  | J94: 0 | L94: 0 | R94: =IFERROR(ROUNDUP(IF(Q94=$AF$6,1,IF(Q94=$AF$7,2,IF(Q94=$AF$8,IF(P94=$AF$3,E94/VLOOKUP(O94,'Art. List'!I84:K94,2,FALSE),IF('Input Form'!P94='Input Form'!$AF$4,'Input Form'!E94/VLOOKUP('Input Form'!O94,'Art. List'!$I$5:$K$15,3,FALSE),0)),$AH$15))),0),0) -> 0
B95: =IF('Project Information'!D111=0,"",'Project Information'!D111) ->  | J95: 0 | L95: 0 | R95: =IFERROR(ROUNDUP(IF(Q95=$AF$6,1,IF(Q95=$AF$7,2,IF(Q95=$AF$8,IF(P95=$AF$3,E95/VLOOKUP(O95,'Art. List'!I85:K95,2,FALSE),IF('Input Form'!P95='Input Form'!$AF$4,'Input Form'!E95/VLOOKUP('Input Form'!O95,'Art. List'!$I$5:$K$15,3,FALSE),0)),$AH$15))),0),0) -> 0
B96: =IF('Project Information'!D112=0,"",'Project Information'!D112) ->  | J96: 0 | L96: 0 | R96: =IFERROR(ROUNDUP(IF(Q96=$AF$6,1,IF(Q96=$AF$7,2,IF(Q96=$AF$8,IF(P96=$AF$3,E96/VLOOKUP(O96,'Art. List'!I86:K96,2,FALSE),IF('Input Form'!P96='Input Form'!$AF$4,'Input Form'!E96/VLOOKUP('Input Form'!O96,'Art. List'!$I$5:$K$15,3,FALSE),0)),$AH$15))),0),0) -> 0
B97: =IF('Project Information'!D113=0,"",'Project Information'!D113) ->  | J97: 0 | L97: 0 | R97: =IFERROR(ROUNDUP(IF(Q97=$AF$6,1,IF(Q97=$AF$7,2,IF(Q97=$AF$8,IF(P97=$AF$3,E97/VLOOKUP(O97,'Art. List'!I87:K97,2,FALSE),IF('Input Form'!P97='Input Form'!$AF$4,'Input Form'!E97/VLOOKUP('Input Form'!O97,'Art. List'!$I$5:$K$15,3,FALSE),0)),$AH$15))),0),0) -> 0
B98: =IF('Project Information'!D114=0,"",'Project Information'!D114) ->  | J98: 0 | L98: 0 | R98: =IFERROR(ROUNDUP(IF(Q98=$AF$6,1,IF(Q98=$AF$7,2,IF(Q98=$AF$8,IF(P98=$AF$3,E98/VLOOKUP(O98,'Art. List'!I88:K98,2,FALSE),IF('Input Form'!P98='Input Form'!$AF$4,'Input Form'!E98/VLOOKUP('Input Form'!O98,'Art. List'!$I$5:$K$15,3,FALSE),0)),$AH$15))),0),0) -> 0
B99: =IF('Project Information'!D115=0,"",'Project Information'!D115) ->  | J99: 0 | L99: 0 | R99: =IFERROR(ROUNDUP(IF(Q99=$AF$6,1,IF(Q99=$AF$7,2,IF(Q99=$AF$8,IF(P99=$AF$3,E99/VLOOKUP(O99,'Art. List'!I89:K99,2,FALSE),IF('Input Form'!P99='Input Form'!$AF$4,'Input Form'!E99/VLOOKUP('Input Form'!O99,'Art. List'!$I$5:$K$15,3,FALSE),0)),$AH$15))),0),0) -> 0
B100: =IF('Project Information'!D116=0,"",'Project Information'!D116) ->  | J100: 0 | L100: 0 | R100: =IFERROR(ROUNDUP(IF(Q100=$AF$6,1,IF(Q100=$AF$7,2,IF(Q100=$AF$8,IF(P100=$AF$3,E100/VLOOKUP(O100,'Art. List'!I90:K100,2,FALSE),IF('Input Form'!P100='Input Form'!$AF$4,'Input Form'!E100/VLOOKUP('Input Form'!O100,'Art. List'!$I$5:$K$15,3,FALSE),0)),$AH$15))),0),0) -> 0
B101: =IF('Project Information'!D117=0,"",'Project Information'!D117) ->  | J101: 0 | L101: 0 | R101: =IFERROR(ROUNDUP(IF(Q101=$AF$6,1,IF(Q101=$AF$7,2,IF(Q101=$AF$8,IF(P101=$AF$3,E101/VLOOKUP(O101,'Art. List'!I91:K101,2,FALSE),IF('Input Form'!P101='Input Form'!$AF$4,'Input Form'!E101/VLOOKUP('Input Form'!O101,'Art. List'!$I$5:$K$15,3,FALSE),0)),$AH$15))),0),0) -> 0
B102: =IF('Project Information'!D118=0,"",'Project Information'!D118) ->  | J102: 0 | L102: 0 | R102: =IFERROR(ROUNDUP(IF(Q102=$AF$6,1,IF(Q102=$AF$7,2,IF(Q102=$AF$8,IF(P102=$AF$3,E102/VLOOKUP(O102,'Art. List'!I92:K102,2,FALSE),IF('Input Form'!P102='Input Form'!$AF$4,'Input Form'!E102/VLOOKUP('Input Form'!O102,'Art. List'!$I$5:$K$15,3,FALSE),0)),$AH$15))),0),0) -> 0
B103: =IF('Project Information'!D119=0,"",'Project Information'!D119) ->  | J103: 0 | L103: 0 | R103: =IFERROR(ROUNDUP(IF(Q103=$AF$6,1,IF(Q103=$AF$7,2,IF(Q103=$AF$8,IF(P103=$AF$3,E103/VLOOKUP(O103,'Art. List'!I93:K103,2,FALSE),IF('Input Form'!P103='Input Form'!$AF$4,'Input Form'!E103/VLOOKUP('Input Form'!O103,'Art. List'!$I$5:$K$15,3,FALSE),0)),$AH$15))),0),0) -> 0
B104: =IF('Project Information'!D120=0,"",'Project Information'!D120) ->  | J104: 0 | L104: 0 | R104: =IFERROR(ROUNDUP(IF(Q104=$AF$6,1,IF(Q104=$AF$7,2,IF(Q104=$AF$8,IF(P104=$AF$3,E104/VLOOKUP(O104,'Art. List'!I94:K104,2,FALSE),IF('Input Form'!P104='Input Form'!$AF$4,'Input Form'!E104/VLOOKUP('Input Form'!O104,'Art. List'!$I$5:$K$15,3,FALSE),0)),$AH$15))),0),0) -> 0
B105: =IF('Project Information'!D121=0,"",'Project Information'!D121) ->  | J105: 0 | L105: 0 | R105: =IFERROR(ROUNDUP(IF(Q105=$AF$6,1,IF(Q105=$AF$7,2,IF(Q105=$AF$8,IF(P105=$AF$3,E105/VLOOKUP(O105,'Art. List'!I95:K105,2,FALSE),IF('Input Form'!P105='Input Form'!$AF$4,'Input Form'!E105/VLOOKUP('Input Form'!O105,'Art. List'!$I$5:$K$15,3,FALSE),0)),$AH$15))),0),0) -> 0
B106: =IF('Project Information'!D122=0,"",'Project Information'!D122) ->  | J106: 0 | L106: 0 | R106: =IFERROR(ROUNDUP(IF(Q106=$AF$6,1,IF(Q106=$AF$7,2,IF(Q106=$AF$8,IF(P106=$AF$3,E106/VLOOKUP(O106,'Art. List'!I96:K106,2,FALSE),IF('Input Form'!P106='Input Form'!$AF$4,'Input Form'!E106/VLOOKUP('Input Form'!O106,'Art. List'!$I$5:$K$15,3,FALSE),0)),$AH$15))),0),0) -> 0
B107: =IF('Project Information'!D123=0,"",'Project Information'!D123) ->  | J107: 0 | L107: 0 | R107: =IFERROR(ROUNDUP(IF(Q107=$AF$6,1,IF(Q107=$AF$7,2,IF(Q107=$AF$8,IF(P107=$AF$3,E107/VLOOKUP(O107,'Art. List'!I97:K107,2,FALSE),IF('Input Form'!P107='Input Form'!$AF$4,'Input Form'!E107/VLOOKUP('Input Form'!O107,'Art. List'!$I$5:$K$15,3,FALSE),0)),$AH$15))),0),0) -> 0
B108: =IF('Project Information'!D124=0,"",'Project Information'!D124) ->  | J108: 0 | L108: 0 | R108: =IFERROR(ROUNDUP(IF(Q108=$AF$6,1,IF(Q108=$AF$7,2,IF(Q108=$AF$8,IF(P108=$AF$3,E108/VLOOKUP(O108,'Art. List'!I98:K108,2,FALSE),IF('Input Form'!P108='Input Form'!$AF$4,'Input Form'!E108/VLOOKUP('Input Form'!O108,'Art. List'!$I$5:$K$15,3,FALSE),0)),$AH$15))),0),0) -> 0
B109: =IF('Project Information'!D125=0,"",'Project Information'!D125) ->  | J109: 0 | L109: 0 | R109: =IFERROR(ROUNDUP(IF(Q109=$AF$6,1,IF(Q109=$AF$7,2,IF(Q109=$AF$8,IF(P109=$AF$3,E109/VLOOKUP(O109,'Art. List'!I99:K109,2,FALSE),IF('Input Form'!P109='Input Form'!$AF$4,'Input Form'!E109/VLOOKUP('Input Form'!O109,'Art. List'!$I$5:$K$15,3,FALSE),0)),$AH$15))),0),0) -> 0
B110: =IF('Project Information'!D126=0,"",'Project Information'!D126) ->  | J110: 0 | L110: 0 | R110: =IFERROR(ROUNDUP(IF(Q110=$AF$6,1,IF(Q110=$AF$7,2,IF(Q110=$AF$8,IF(P110=$AF$3,E110/VLOOKUP(O110,'Art. List'!I100:K110,2,FALSE),IF('Input Form'!P110='Input Form'!$AF$4,'Input Form'!E110/VLOOKUP('Input Form'!O110,'Art. List'!$I$5:$K$15,3,FALSE),0)),$AH$15))),0),0) -> 0
B111: =IF('Project Information'!D127=0,"",'Project Information'!D127) ->  | J111: =ROUNDUP(IF(I111=$AH$6,E111/1.5,IF(I111=$AH$7,E111/3,IF(I111=$AH$8,E111/4.5,IF(I111=$AH$9,K111,0)))),) -> 0 | L111: 0 | R111: =IFERROR(ROUNDUP(IF(Q111=$AF$6,1,IF(Q111=$AF$7,2,IF(Q111=$AF$8,IF(P111=$AF$3,E111/VLOOKUP(O111,'Art. List'!I101:K111,2,FALSE),IF('Input Form'!P111='Input Form'!$AF$4,'Input Form'!E111/VLOOKUP('Input Form'!O111,'Art. List'!$I$5:$K$15,3,FALSE),0)),$AH$15))),0),0) -> 0
B112: =IF('Project Information'!D128=0,"",'Project Information'!D128) ->  | J112: 0 | L112: 0 | R112: =IFERROR(ROUNDUP(IF(Q112=$AF$6,1,IF(Q112=$AF$7,2,IF(Q112=$AF$8,IF(P112=$AF$3,E112/VLOOKUP(O112,'Art. List'!I102:K112,2,FALSE),IF('Input Form'!P112='Input Form'!$AF$4,'Input Form'!E112/VLOOKUP('Input Form'!O112,'Art. List'!$I$5:$K$15,3,FALSE),0)),$AH$15))),0),0) -> 0
B113: =IF('Project Information'!D129=0,"",'Project Information'!D129) ->  | J113: 0 | L113: 0 | R113: =IFERROR(ROUNDUP(IF(Q113=$AF$6,1,IF(Q113=$AF$7,2,IF(Q113=$AF$8,IF(P113=$AF$3,E113/VLOOKUP(O113,'Art. List'!I103:K113,2,FALSE),IF('Input Form'!P113='Input Form'!$AF$4,'Input Form'!E113/VLOOKUP('Input Form'!O113,'Art. List'!$I$5:$K$15,3,FALSE),0)),$AH$15))),0),0) -> 0
B114: =IF('Project Information'!D130=0,"",'Project Information'!D130) ->  | J114: 0 | L114: 0 | R114: =IFERROR(ROUNDUP(IF(Q114=$AF$6,1,IF(Q114=$AF$7,2,IF(Q114=$AF$8,IF(P114=$AF$3,E114/VLOOKUP(O114,'Art. List'!I104:K114,2,FALSE),IF('Input Form'!P114='Input Form'!$AF$4,'Input Form'!E114/VLOOKUP('Input Form'!O114,'Art. List'!$I$5:$K$15,3,FALSE),0)),$AH$15))),0),0) -> 0

Sheet Trunking Translation (hidden)
A1: =IF('Project Information'!$E$3='Trunking Translation'!M1,1,IF('Project Information'!$E$3='Trunking Translation'!M2,2,IF('Project Information'!$E$3='Trunking Translation'!M3,3,IF('Project Information'!$E$3='Trunking Translation'!M4,4,IF('Project Information'!$E$3='Trunking Translation'!M5,5,IF('Project Information'!$E$3='Trunking Translation'!M6,6,IF('Project Information'!$E$3='Trunking Translation'!M7,7,""))))))) -> 1 | C1: English | D1: Nederlands | E1: German | F1: Italian | G1: French | H1: Spanish | I1: Polish | M1: English
A2: Navigation Panel | B2: =CONCATENATE("1. ",VLOOKUP(C2,$C:$L,$A$1,FALSE)) -> 1. Start Page | C2: Start Page | D2: Begin pagina | E2: Startseite | F2: Pagina iniziale | G2: Page d'accueil | H2: Página de inicio | I2: Strona startowa | M2: Nederlands
B3: =CONCATENATE("2. ",VLOOKUP(C3,$C:$L,$A$1,FALSE)) -> 2. Input Form | C3: Input Form | D3: Invulformulier | E3: Eingabeformular | F3: Modulo di input | G3: Formulaire de saisie | H3: Formulario de entrada | I3: Formularz wejściowy | M3: Deutsch
B4: =CONCATENATE("3. ",VLOOKUP(C4,$C:$L,$A$1,FALSE)) -> 3. Configurator | C4: Configurator | D4: Configurator | E4: Konfigurator | F4: Configuratore | G4: Configurateur | H4: Configurador | I4: Konfigurator | M4: Italiano
B5: =CONCATENATE("4. ",VLOOKUP(C5,$C:$L,$A$1,FALSE)) -> 4. Quotation | C5: Quotation | D5: Offerte | E5: Angebot | F5: Quotazione | G5: Devis | H5: Presupuesto | I5: Wycena | M5: Français
B6: =CONCATENATE("5. ",VLOOKUP(C6,$C:$L,$A$1,FALSE)) -> 5. Save As | C6: Save As | D6: Opslaan als | E6: Speichern als | F6: Salva come | G6: Sauvegarder comme | H6: Guardar como | I6: Zapisz jako | M6: Español
B7: =CONCATENATE("6. ",VLOOKUP(C7,$C:$L,$A$1,FALSE)) -> 6. Export PDF | C7: Export PDF | D7: Exporteer PDF | E7: Export PDF | F7: Esporta PDF | G7: Exportation PDF | H7: Exportar como PDF | I7: Eksport do PDF | M7: Polski
B8: =VLOOKUP(C8,$C:$L,$A$1,FALSE) -> Export Excel | C8: Export Excel | D8: Exporteer Excel | E8: Export Excel | F8: Esporta Excel | G8: Exportation Excel | H8: Exportar a Excel | I8: Eksport do Excel
B9: =VLOOKUP(C9,$C:$L,$A$1,FALSE) -> Clear Input | C9: Clear Input | D9: Wis input | E9: Eingabe löschen | F9: Cancella input | G9: Effacer saisie | H9: Borrar información | I9: Wyczyść dane wejściowe
B10: =VLOOKUP(C10,$C:$L,$A$1,FALSE) -> Update | C10: Update | D10: Updaten | E10: Aktualisieren | F10: Aggiornamento | G10: Mise à jour | H10: Actualizar | I10: Aktualizuj
B11: =VLOOKUP(C11,$C:$L,$A$1,FALSE) -> Clear All | C11: Clear All | D11: Wis alles | E11: Alles löschen | F11: Cancella tutto | G11: Effacer tout | H11: Borrarlo todo | I11: Wyczyść wszystko
A13: Start Page | B13: =VLOOKUP(C13,$C:$L,$A$1,FALSE) -> OPPLE LED Trunking Configurator | C13: OPPLE LED Trunking Configurator | D13: OPPLE LED Trunking Configurator | E13: OPPLE LED Lichtband-Konfigurator | F13: Configuratore Sistema a Binario LED OPPLE | G13: Configurateur rail précâblé OPPLE LEDTrunking | H13: Configurador del sistema Trunking LED de OPPLE | I13: Konfigurator listew oświetleniowych OPPLE LED
B14: Project Information | C14: Project Information | D14: Project informatie | E14: Projektinformation | F14: Informazioni sul progetto | G14: Information projet | H14: Información del proyecto | I14: Informacje o projekcie
B15: Project Name* | C15: Project Name* | D15: Projectnaam* | E15: Projektname* | F15: Nome del progetto* | G15: Nom du projet* | H15: Nombre del proyecto* | I15: Nazwa projektu*
B16: Wholesaler | C16: Wholesaler | D16: Groothandel | E16: Händler | F16: Grossista | G16: Grossiste | H16: Mayorista | I16: Hurtownik
B17: Installer | C17: Installer | D17: Installateur | E17: Installateur | F17: Installatore | G17: Installateur | H17: Instalador | I17: Instalator
B18: OPPLE Lighting B.V Information | C18: OPPLE Lighting B.V Information | D18: OPPLE Lighting. B.V. Informatie | E18: OPPLE Lighting B.V. Information | F18: Informazioni su OPPLE Lighting B.V. | G18: Information OPPLE Lighting B.V. | H18: Información OPPLE Lighting B.V | I18: Informacje o OPPLE Lighting B.V
B19: Representative* | C19: Representative* | D19: Vertegenwoordiger* | E19: Verkäufer* | F19: Venditore* | G19: Représentant* | H19: Responsable comercial* | I19: Przedstawiciel*
B20: Date | C20: Date | D20: Datum | E20: Datum | F20: Data | G20: Date | H20: Fecha | I20: Data
B21: Project Remark | C21: Project Remark | D21: Project opmerkingen | E21: Angaben zum Projekt | F21: Commenti sul progetto | G21: Remarques sur le projet | H21: Observaciones sobre el proyecto | I21: Uwagi dotyczące projektu
B22: Section Name & Remark | C22: Section Name & Remark | D22: Sectie naam & opmerkingen | E22: Bez. Abteilung u. Anmerkung | F22: Nome della sezione & commenti | G22: Section Nom & Remarque | H22: Observaciones y nombre de la sección | I22: Nazwa sekcji i uwagi
B23: Section | C23: Section | D23: Sectie | E23: Halle | F23: Sezione | G23: de fichier | H23: Sección | I23: Sekcja
A25: Sheet Title | B25: =VLOOKUP(C25,$C:$L,$A$1,FALSE) -> OPPLE LED Trunking: Input Form | C25: OPPLE LED Trunking: Input Form | D25: OPPLE LED Trunking: Invulformulier | E25: OPPLE LED Lichtband: Eingabeformular | F25: Binario LED OPPLE: informazioni per creare il sistema | G25: Rail précâblé OPPLE LED : Formulaire de saisie | H25: Sistema Trunking LED de OPPLE: Formulario de entrada | I25: Konfigurator listew oświetleniowych OPPLE LED: Formularz wejściowy
B26: =VLOOKUP(C26,$C:$L,$A$1,FALSE) -> OPPLE LED Trunking Configurator | C26: OPPLE LED Trunking Configurator | D26: OPPLE LED Trunking Configurator | E26: OPPLE LED Lichtband-Konfigurator | F26: Configuratore Sistema a Binario LED OPPLE | G26: Configurateur rail précâblé OPPLE LEDTrunking | H26: Configurador del sistema Trunking LED de OPPLE | I26: Konfigurator listew oświetleniowych OPPLE LED
B27: =VLOOKUP(C27,$C:$L,$A$1,FALSE) -> OPPLE LED Trunking: Total Gross Price and Product list | C27: OPPLE LED Trunking: Total Gross Price and Product list | D27: OPPLE LED Trunking: Bruto Prijs en Product lijst | E27: OPPLE LED Tragschienen: Brutto Gesamtpreis und Produktübersicht | F27: Binario LED OPPLE: Lista prodotti e prezzi di listino | G27: Rail précâblé OPPLE LED : Total prix publics htva et liste de produits | H27: Sistema Trunking LED de OPPLE: PVP y lista de productos | I27: Listwa oświetleniowa OPPLE LED: Całkowita cena brutto i lista produktów
A29: Headers | B29: =VLOOKUP(C29,$C:$L,$A$1,FALSE) -> LED Module | C29: LED Module | D29: LED Module bezetting | E29: LED-Module | F29: Modulo LED | G29: Module LED | H29: Módulo LED | I29: Moduł LED
B30: No. of Lines | C30: No. of Lines | D30: Aantal lijnen | E30: Anzahl der Lichtbänder | F30: N. di linee | G30: Nombre de lignes | H30: Núm. de líneas | I30: Nr przewodów
B31: Length per line (m) | C31: Length per line (m) | D31: Lengte per lijn (m) | E31: Länge pro Lichtband (in meter) | F31: Lunghezza per linea (m) | G31: Longueur par ligne (m) | H31: Longitud por línea (m) | I31: Długość na przewód (m)
B32: Feed-in-box | C32: Feed-in-box | D32: Feed-in box | E32: Feed-in-Box ( Endeinspeisung) | F32: Box alimentazione | G32: Boîte d'alimentation | H32: Caja alimentación | I32: Puszka instalacyjna
B33: Mounting Method | C33: Mounting Method | D33: Montage methode | E33: Befestigungsart | F33: Montaggio | G33: Méthode de montage | H33: Método de montaje | I33: Metoda montażu
B34: LED Module Occupation per Line | C34: LED Module Occupation per Line | D34: LED Modulebezetting per Lijn | E34: LED-Modul-Belegung pro Lichtband | F34: Posizione del modulo LED per linea | G34: Occupation LED Module par ligne | H34: Ocupación del módulo LED por línea | I34: Zajęty moduł LED na przewód
B35: Custom Amount | C35: Custom Amount | D35: Aangepast aantal | E35: Selbstfestgelegte Anzahl | F35: Importo personalizzato | G35: Quantité personnalisée | H35: Personalizar cantidad | I35: Kwota niestandardowa
B36: LED Modules per Line | C36: LED Modules per Line | D36: LED Modules per lijn | E36: LED-Module pro Lichtband | F36: Moduli LED per linea | G36: LED Modules par ligne | H36: Módulos LED por línea | I36: Moduły LED na przewód
B37: Line ends with LED Module? | C37: Line ends with LED Module? | D37: Lijn eindigt met LED Module? | E37: Lichtband endet mit LED-Modul? | F37: La linea termina con modulo LED? | G37: Fins de ligne avec Module LED ? | H37: ¿Acaba la línea con el módulo LED? | I37: Czy przewód kończy się modułem LED?
B38: Article Code | C38: Article Code | D38: Artikel Code | E38: Artikelcode | F38: Codice articolo | G38: Code article | H38: Código de artículo | I38: Kod artykułu
B39: Article Description | C39: Article Description | D39: Artikel omschrijving | E39: Artikelbeschreibung | F39: Descrizione articolo | G39: Description article | H39: Descripción de artículo | I39: Opis artykułu
B40: Number of products needed | C40: Number of products needed | D40: Aantal benodigde producten | E40: Anzahl benötigte Produkte | F40: Numero di prodotti necessari | G40: Nombre de produits souhaité | H40: Cantidad necesaria de productos | I40: Liczba potrzebnych produktów
B41: Unit Gross Price | C41: Unit Gross Price | D41: Eenheid bruto prijs | E41: Bruttopreis pro Einheit | F41: Prezzo netto | G41: Prix bruts unitaires | H41: PVP por unidad | I41: Cena jednostkowa brutto
B42: Total Gross Price | C42: Total Gross Price | D42: Totale bruto prijs | E42: Gesamt-Bruttopreis | F42: Prezzo nettototale | G42: Total prix brut htva | H42: Precio total PVP | I42: Całkowita cena brutto
B43: Remarks | C43: Remarks | D43: Opmerkingen | E43: Anmerkungen | F43: Commenti | G43: Remarques | H43: Observaciones | I43: Uwagi
B44: Quantity Needed | C44: Quantity Needed | D44: Aantal nodig | E44: Benötigte Menge | F44: Quantità necessaria | G44: Quantité souhaitée | H44: Cantidad necesaria | I44: Potrzebna liczba
B45: Power | C45: Power | D45: Vermogen | E45: Stromversorgung | F45: Alimentazione | G45: Puissance | H45: Alimentación | I45: Moc
A47: Inputs | B47: =VLOOKUP(C47,$C:$L,$A$1,FALSE) -> Yes | C47: Yes | D47: Ja | E47: Ja | F47: Sì | G47: Oui | H47: Sí | I47: Tak
B48: No | C48: No | D48: Nee | E48: Nein | F48: No | G48: Non | H48: No | I48: Nie
B49: Mounting Clip Chain | C49: Mounting Clip Chain | D49: Montagebeugel voor ketting | E49: Montageklammer-für Knotenkette | F49: Catena di montaggio clip | G49: Montage chaîne à pince | H49: Cadena con clip de montaje | I49: Łańcuch z zaciskiem montażowym
B50: Cord 3m | C50: Cord 3m | D50: Kabel 3m | E50: Stahlseil 3 m | F50: Cavo 3 m | G50: Corde 3m | H50: Cuerda 3 m | I50: Przewód 3 m
B51: Mounting Clip | C51: Mounting Clip | D51: Montagebeugel | E51: Montageklammer | F51: Clip di montaggio | G51: Montage pince de fixation | H51: Clip de montaje | I51: Zacisk montażowy
B52: Full | C52: Full | D52: Volledig | E52: Voll | F52: Completo | G52: À plein | H52: Completo | I52: Całe
B53: Half | C53: Half | D53: Helft | E53: Halb | F53: Metà | G53: À moitié | H53: Mitad | I53: Połowa
B54: One-Third | C54: One-Third | D54: Een-derde | E54: Ein Drittel | F54: Un terzo | G54: Un tiers | H54: Un tercio | I54: Jedna trzecia
B55: Custom | C55: Custom | D55: Aangepast | E55: Kundenspezifisch | F55: Personalizzato | G55: Personnalisation | H55: Personalizar | I55: Niestandardowe
B56: Update | C56: Update | D56: Updaten | E56: Aktualisieren | F56: Aggiornamento | G56: Mise à jour | H56: Actualizar | I56: Aktualizuj
B57: Unknown | C57: Unknown | D57: Onbekend | E57: Unbekannt | F57: Sconosciuto | G57: Inconnu | H57: Desconocido | I57: Nieznane
B58: Only needed in case not already present in the installation | C58: Only needed in case not already present in the installation | D58: Alleen nodig indien niet aanwezig in de installatie. | E58: Nur erforderlich, wenn nicht bereits in die Installation aufgenommen. | F58: Necessario solo nel caso non sia già presente nell'impianto | G58: Seulement nécessaire pour autant qu’absent de l'installation | H58: Solo hacen falta si no están en la instalación | I58: Potrzebne wyłącznie wówczas, jeśli nie znajdują się już w instalacji
A60: Message Box | B60: =VLOOKUP(C60,$C:$L,$A$1,FALSE) -> Cancel clicked | C60: Cancel clicked | D60: Annuleer geklikt | E60: Abbruch angeklickt | F60: Annulla | G60: Annulez verrouillage | H60: Se hizo clic en «anular» | I60: Kliknięto na anuluj
B61: Could not create PDF file | C61: Could not create PDF file | D61: Can de PDF file niet creeëren | E61: PDF-Datei konnte nicht erstellt werden | F61: Impossibile creare file PDF | G61: Impossible de créer fichier PDF | H61: No se pudo crear un archivo PDF | I61: Nie udało się utworzyć pliku PDF
B62: There is no project name | C62: There is no project name | D62: Er is geen project naam | E62: Kein Projektname eingegeben | F62: Non esiste un nome di progetto | G62: Pas de nom de projet | H62: El proyecto no tiene nombre | I62: Nie ma nazwy projektu
B63: You saved file | C63: You saved file | D63: Je hebt het bestand opgeslagen | E63: Datei wurde gespeichert | F63: Hai salvato il file | G63: Vous avez sauvegardé le fichier | H63: Archivo guardado | I63: Zapisano plik
B64: Customizable Quotation is created! | C64: Customizable Quotation is created! | D64: Aangepaste offerte is gecreeërd! | E64: Ein (kundenspezisches) Angebot wurde erstellt! | F64: La quotazione personalizzabile è stato creata! | G64: Un devis personnalisable a été créé | H64: ¡Se creó un presupuesto personalizado! | I64: Utworzono niestandardową wycenę
B65: File not open | C65: File not open | D65: Bestand niet open | E65: Datei nicht geöffnet | F65: File non aperto | G65: Le Fichier n’est pas ouvert | H65: El archivo no se abre | I65: Plik nie jest otwarty
B66: Input Data Successfully! | C66: Input Data Successfully! | D66: Data succesvol ingevuld! | E66: Dateneingabe war erfolgreich! | F66: Inserimento dati riuscito! | G66: Les données ont été encodées avec succès ! | H66: Datos introducidos correctamente | I66: Pomyślnie wprowadzono dane!
B67: The process may take around 10 to 20 seconds. Please wait! | C67: The process may take around 10 to 20 seconds. Please wait! | D67: Dit proces kan 10 tot 20 seconden duren. Even geduld! | E67: Der Vorgang kann etwa 10 bis 20 Sekunden dauern. Bitte einen Moment warten! | F67: Il processo può richiedere da 10 a 20 secondi circa. Attendere prego! | G67: Le processus doit prendre entre 10 & 20 secondes Veuillez patienter ! | H67: El proceso puede tardar entre 10 y 20 segundos. Espere. | I67: Ten proces może potrwać od 10 do 20 sekund. Prosimy czekać!
B68: Please fill in all information for the sections. | C68: Please fill in all information for the sections. | D68: Vul voor iedere sectie alle informatie in. | E68: Bitte füllen Sie alle Informationen für die Abschnitte aus. | F68: Si prega di compilare tutte le informazioni | G68: Veuillez remplir toutes les informations concernant les sections. | H68: Complete toda la información de las secciones. | I68: Prosimy podać wszystkie informacje w sekcjach.
B69: The file is saved! | C69: The file is saved! | D69: Het bestand is opgeslagen! | E69: Die Datei wurde gespeichert! | F69: Il file è salvato! | G69: Le fichier a été sauvegardé ! | H69: Se guardó el archivo. | I69: Plik został zapisany!
B70: Length is not appropriate, the length will be round down | C70: Length is not appropriate, the length will be round down | D70: De lengte is niet passend, de lengte wordt afgerond naar beneden | E70: Die Länge ist nicht zulässig, die Länge wird abgerundet | F70: La lunghezza non è disponibile e sarà arrotondata. | G70: La longueur n'est pas appropriée, la longueur sera arrondie au chiffre inférieur | H70: La longitud no es la correcta, se redondeará hacia abajo. | I70: Długość nie jest prawidłowa i zostanie zaokrąglona w dół
B72: =VLOOKUP(C72,$C:$L,$A$1,FALSE) -> Feed-out-box | C72: Feed-out-box | D72: Feed-out box | E72: Einspeisebox | F72: Scatola di alimentazione | G72: Boîte de distribution | H72: Caja de alimentación | I72: Puszka instalacyjna
B73: Sensor | C73: Sensor | D73: Sensor | E73: Sensor | F73: Sensore | G73: Détecteur | H73: Sensor | I73: Czujnik
B74: Installation Height (m) | C74: Installation Height (m) | D74: Installatiehoogte (m) | E74: Einbauhöhe (m) | F74: Altezza di installazione (m) | G74: Hauteur d'installation (m) | H74: Altura de instalación (m) | I74: Wysokość instalacji (m)
B75: Sensor Occupation per Line | C75: Sensor Occupation per Line | D75: Sensorbezetting per lijn | E75: Sensorbelegung pro Linie | F75: Occupazione del sensore per linea | G75: Détecteur d'occupation par ligne | H75: Sensor de ocupación por línea | I75: Zajęcie czujnika na linię
B76: Sensor Type | C76: Sensor Type | D76: Sensortype | E76: Sensortyp | F76: Tipo di sensore | G76: Type de détecteur | H76: Tipo de sensor | I76: Rodzaj czujnika
B77: No. of Sensors per Line | C77: No. of Sensors per Line | D77: Aantal sensoren per lijn | E77: Anzahl der Sensoren pro Linie | F77: Numero di sensori per linea | G77: Nombre de détecteurs par ligne | H77: Núm. de sensores por línea | I77: Liczba czujników na linię
B78: Dali Power Supply | C78: Dali Power Supply | D78: Dali stroomvoorziening | E78: Dali-Netzteil | F78: Alimentatore Dali | G78: Chaîne d'alimentation Dali | H78: Suministro eléctrico Dali | I78: Zasilacz Dali
B79: Line ends with Trunking Cover? | C79: Line ends with Trunking Cover? | D79: Lijn eindigt met bedekking kabelgoot? | E79: Linie endet mit Kanalendkappe? | F79: La linea termina con la copertura trunking? | G79: Fin de ligne avec couvercle de gaine ? | H79: ¿Acaba la línea con una funda de derivación? | I79: Czy linia kończy się pokrywą koryta kablowego?
B80: LIGHT LINE CONFIGURATION | C80: LIGHT LINE CONFIGURATION | D80: CONFIGURATIE LICHTLIJN | E80: LICHTLINIENKONFIGURATION | F80: CONFIGURAZIONE DELLA LINEA LUMINOSA | G80: CONFIGURATION DE LA LIGNE D'ÉCLAIRAGE | H80: CONFIGURACIÓN DE LA LÍNEA LUMÍNICA | I80: KONFIGURACJA LINII ŚWIATŁA
B81: ACCESSORY | C81: ACCESSORY | D81: ACCESSOIRE | E81: ZUBEHÖR | F81: ACCESSORIO | G81: ACCESSOIRE | H81: ACCESORIO | I81: AKCESORIA
B82: =UPPER(VLOOKUP(C82,$C:$L,$A$1,FALSE)) -> SENSOR | C82: SENSOR | D82: SENSOR | E82: SENSOR | F82: SENSORE | G82: DÉTECTEUR | H82: SENSOR | I82: CZUJNIK
B83: =VLOOKUP(C83,$C:$L,$A$1,FALSE) -> Select Print Area | C83: Select Print Area | D83: Kies afdrukbereik | E83: Druckbereich auswählen | F83: Selezionare l'area di stampa | G83: Sélectionnez la zone d'impression | H83: Seleccionar área de impresión | I83: Wybierz obszar wydruku
B84: =VLOOKUP(C84,$C:$L,$A$1,FALSE) -> Begin | C84: Begin | D84: Begin | E84: Anfang | F84: Inizio | G84: Début | H84: Inicio | I84: Początek
B85: =VLOOKUP(C85,$C:$L,$A$1,FALSE) -> Begin-End | C85: Begin-End | D85: Begin-Eind | E85: Anfang-Ende | F85: Inizio-fine | G85: Début-Fin | H85: Inicio-final | I85: Początek-koniec
B86: =VLOOKUP(C86,$C:$L,$A$1,FALSE) & " " -> The maximum number for this line is | C86: The maximum number for this line is | D86: Het maximum aantal voor deze lijn is | E86: Die maximale Anzahl für dieses Lichtband | F86: Il numero massimo per questa linea è | G86: La quantité maximum pour cette ligne est | H86: El máximo número para esta línea es | I86: Maksymalna liczba dla linii świetlnej
B87: =VLOOKUP(C87,$C:$L,$A$1,FALSE) -> Blind Covers per line | C87: Blind Covers per line | D87: Blindplaten per lijn | E87: Blenden pro Lichtband | F87: Coperture cieche per linea | G87: Nombre de couvertures de rail par ligne | H87: Tapas ciegas por línea | I87: Liczba zaślepek dla linii świetlnej
B88: =VLOOKUP(C88,$C:$L,$A$1,FALSE) -> To enable the PDF export of also the section data, please click the button "No" once, and afterwards set the correct print range manually in Excel. Did you already set the print range? | C88: To enable the PDF export of also the section data, please click the button "No" once, and afterwards set the correct print range manually in Excel. Did you already set the print range? | D88: Om de PDF uitvoer van de sectie gegevens mogelijk te maken gelieve eenmaal op de knop "Nee" drukken, en stel daarna het juiste printbereik handmatig in Excel. Heeft u het printbereik reeds ingesteld? | E88: Klicken Sie auf "No", um die Daten der gewählten Abteilung in PDF zu exportieren und wählen Sie den Druckbereich in Excel. Haben Sie den Druckbereich bereits eingestellt? | F88: Per esportare i dati della sezione in formato PDF, fare clic sul pulsante "No" e impostare manualmente il formato di stampa in Excel. Hai già impostato l'intervallo di stampa? | G88: Pour activer l’export PDF incluant la page des données, veuillez cliquer sur le bouton "Non", et par la suite sélectionnez manuellement la zone à imprimer dans le fichier excel. Avez-vous déjà défini la zone d'impression? | H88: Para habilitar la exportación en archivo PDF de esta sección, por favor cliquee una vez el botón “No” y posteriormente elija manualmente el área correcta de impresión en Excel. ¿Ya configuró el rango de impresión? | I88: By wyeksportować dane wybranej sekcji do pliku PDF naciśnij przycisk "Nie" I wybierz ręcznie pole wydruku w Excelu. Czy ustawiłeś już zakres drukowania?

Sheet Quotation (hidden)
B5: ='Trunking Translation'!B27 -> OPPLE LED Trunking: Total Gross Price and Product list
B9: ='Project Information'!C9 -> Project Name* | C9: =IF(ISBLANK('Project Information'!F9),"",'Project Information'!F9) ->  | E9: ='Project Information'!C17 -> Representative* | G9: =IF(ISBLANK('Project Information'!F17),"",'Project Information'!F17) -> 
B10: ='Project Information'!D11 -> Wholesaler | C10: =IF(ISBLANK('Project Information'!F11),"",'Project Information'!F11) ->  | E10: ='Project Information'!D19 -> Date | G10: ='Project Information'!F19 -> 2021-06-04
B11: ='Project Information'!D13 -> Installer | C11: =IF(ISBLANK('Project Information'!F13),"",'Project Information'!F13) -> 
B13: ='Trunking Translation'!$B$38 -> Article Code | C13: ='Trunking Translation'!$B$39 -> Article Description | D13: ='Trunking Translation'!$B$40 -> Number of products needed | E13: ='Trunking Translation'!$B$41 -> Unit Gross Price | F13: ='Trunking Translation'!$B$42 -> Total Gross Price | G13: ='Trunking Translation'!$B$43 -> Remarks | H13: ='Trunking Translation'!B45 -> Power
B14: ='Trunking Translation'!$B$38 -> Article Code | C14: ='Trunking Translation'!$B$39 -> Article Description | D14: ='Trunking Translation'!$B$40 -> Number of products needed | E14: ='Trunking Translation'!$B$41 -> Unit Gross Price | F14: ='Trunking Translation'!$B$42 -> Total Gross Price | G14: ='Trunking Translation'!$C$43 -> Remarks
B15: ='Trunking Translation'!$B$38 -> Article Code | C15: ='Trunking Translation'!$B$39 -> Article Description | D15: ='Trunking Translation'!$B$40 -> Number of products needed | E15: ='Trunking Translation'!$B$41 -> Unit Gross Price | F15: ='Trunking Translation'!$B$42 -> Total Gross Price | G15: ='Trunking Translation'!$C$43 -> Remarks
B16: 542005008200 | C16: LEDTrunking Module L15-35W-4000-120 | D16: =SUMIF(Configurator!$C:$C,Quotation!C16,Configurator!$D:$D) -> 0 | E16: =_xlfn.IFNA(VLOOKUP(B16,'Art. List'!$C:$F,3,FALSE),0) -> 156 | F16: =IFERROR(E16*D16,"") -> 0 | H16: =_xlfn.IFNA(VLOOKUP(B16,'Art. List'!$C:$F,4,FALSE)*D16/1000,0) -> 0
B17: 542005005800 | C17: LEDTrunking Module L15-50W-4000-120 | D17: =SUMIF(Configurator!$C:$C,Quotation!C17,Configurator!$D:$D) -> 0 | E17: =_xlfn.IFNA(VLOOKUP(B17,'Art. List'!$C:$F,3,FALSE),0) -> 179 | F17: 0 | H17: =_xlfn.IFNA(VLOOKUP(B17,'Art. List'!$C:$F,4,FALSE)*D17/1000,0) -> 0
B18: 542005005900 | C18: LEDTrunking Module L15-50W-4000-90 | D18: =SUMIF(Configurator!$C:$C,Quotation!C18,Configurator!$D:$D) -> 0 | E18: =_xlfn.IFNA(VLOOKUP(B18,'Art. List'!$C:$F,3,FALSE),0) -> 179 | F18: 0 | H18: =_xlfn.IFNA(VLOOKUP(B18,'Art. List'!$C:$F,4,FALSE)*D18/1000,0) -> 0
B19: 542005006000 | C19: LEDTrunking Module L15-50W-4000-60 | D19: =SUMIF(Configurator!$C:$C,Quotation!C19,Configurator!$D:$D) -> 0 | E19: =_xlfn.IFNA(VLOOKUP(B19,'Art. List'!$C:$F,3,FALSE),0) -> 179 | F19: 0 | H19: =_xlfn.IFNA(VLOOKUP(B19,'Art. List'!$C:$F,4,FALSE)*D19/1000,0) -> 0
B20: 542005006100 | C20: LEDTrunking Module L15-50W-4000-BW | D20: =SUMIF(Configurator!$C:$C,Quotation!C20,Configurator!$D:$D) -> 260 | E20: =_xlfn.IFNA(VLOOKUP(B20,'Art. List'!$C:$F,3,FALSE),0) -> 179 | F20: 46540 | H20: =_xlfn.IFNA(VLOOKUP(B20,'Art. List'!$C:$F,4,FALSE)*D20/1000,0) -> 13
B21: 542005006200 | C21: LEDTrunking Module L15-70W-4000-120 | D21: =SUMIF(Configurator!$C:$C,Quotation!C21,Configurator!$D:$D) -> 0 | E21: =_xlfn.IFNA(VLOOKUP(B21,'Art. List'!$C:$F,3,FALSE),0) -> 257 | F21: 0 | H21: =_xlfn.IFNA(VLOOKUP(B21,'Art. List'!$C:$F,4,FALSE)*D21/1000,0) -> 0
B22: 542005006300 | C22: LEDTrunking Module L15-70W-4000-90 | D22: =SUMIF(Configurator!$C:$C,Quotation!C22,Configurator!$D:$D) -> 0 | E22: =_xlfn.IFNA(VLOOKUP(B22,'Art. List'!$C:$F,3,FALSE),0) -> 257 | F22: 0 | H22: =_xlfn.IFNA(VLOOKUP(B22,'Art. List'!$C:$F,4,FALSE)*D22/1000,0) -> 0
B23: 542005006400 | C23: LEDTrunking Module L15-70W-4000-60 | D23: =SUMIF(Configurator!$C:$C,Quotation!C23,Configurator!$D:$D) -> 0 | E23: =_xlfn.IFNA(VLOOKUP(B23,'Art. List'!$C:$F,3,FALSE),0) -> 257 | F23: 0 | H23: =_xlfn.IFNA(VLOOKUP(B23,'Art. List'!$C:$F,4,FALSE)*D23/1000,0) -> 0
B24: 542005006500 | C24: LEDTrunking Module L15-70W-4000-BW | D24: =SUMIF(Configurator!$C:$C,Quotation!C24,Configurator!$D:$D) -> 0 | E24: =_xlfn.IFNA(VLOOKUP(B24,'Art. List'!$C:$F,3,FALSE),0) -> 257 | F24: 0 | H24: =_xlfn.IFNA(VLOOKUP(B24,'Art. List'!$C:$F,4,FALSE)*D24/1000,0) -> 0
B25: 542005008600 | C25: LEDTrunking Module L15-35W-4000-120-DALI | D25: =SUMIF(Configurator!$C:$C,Quotation!C25,Configurator!$D:$D) -> 0 | E25: =_xlfn.IFNA(VLOOKUP(B25,'Art. List'!$C:$F,3,FALSE),0) -> 209 | F25: 0 | H25: =_xlfn.IFNA(VLOOKUP(B25,'Art. List'!$C:$F,4,FALSE)*D25/1000,0) -> 0
B26: 542005006600 | C26: LEDTrunking Module L15-50W-4000-120-DALI | D26: =SUMIF(Configurator!$C:$C,Quotation!C26,Configurator!$D:$D) -> 0 | E26: =_xlfn.IFNA(VLOOKUP(B26,'Art. List'!$C:$F,3,FALSE),0) -> 226 | F26: 0 | H26: =_xlfn.IFNA(VLOOKUP(B26,'Art. List'!$C:$F,4,FALSE)*D26/1000,0) -> 0
B27: 542005006700 | C27: LEDTrunking Module L15-50W-4000-90-DALI | D27: =SUMIF(Configurator!$C:$C,Quotation!C27,Configurator!$D:$D) -> 0 | E27: =_xlfn.IFNA(VLOOKUP(B27,'Art. List'!$C:$F,3,FALSE),0) -> 226 | F27: 0 | H27: =_xlfn.IFNA(VLOOKUP(B27,'Art. List'!$C:$F,4,FALSE)*D27/1000,0) -> 0
B28: 542005006800 | C28: LEDTrunking Module L15-50W-4000-60-DALI | D28: =SUMIF(Configurator!$C:$C,Quotation!C28,Configurator!$D:$D) -> 0 | E28: =_xlfn.IFNA(VLOOKUP(B28,'Art. List'!$C:$F,3,FALSE),0) -> 226 | F28: 0 | H28: =_xlfn.IFNA(VLOOKUP(B28,'Art. List'!$C:$F,4,FALSE)*D28/1000,0) -> 0
B29: 542005006900 | C29: LEDTrunking Module L15-50W-4000-BW-DALI | D29: =SUMIF(Configurator!$C:$C,Quotation!C29,Configurator!$D:$D) -> 0 | E29: =_xlfn.IFNA(VLOOKUP(B29,'Art. List'!$C:$F,3,FALSE),0) -> 226 | F29: 0 | H29: =_xlfn.IFNA(VLOOKUP(B29,'Art. List'!$C:$F,4,FALSE)*D29/1000,0) -> 0
B30: 542005007000 | C30: LEDTrunking Module L15-70W-4000-120-DALI | D30: =SUMIF(Configurator!$C:$C,Quotation!C30,Configurator!$D:$D) -> 0 | E30: =_xlfn.IFNA(VLOOKUP(B30,'Art. List'!$C:$F,3,FALSE),0) -> 305 | F30: 0 | H30: =_xlfn.IFNA(VLOOKUP(B30,'Art. List'!$C:$F,4,FALSE)*D30/1000,0) -> 0
B31: 542005007100 | C31: LEDTrunking Module L15-70W-4000-90-DALI | D31: =SUMIF(Configurator!$C:$C,Quotation!C31,Configurator!$D:$D) -> 0 | E31: =_xlfn.IFNA(VLOOKUP(B31,'Art. List'!$C:$F,3,FALSE),0) -> 305 | F31: 0 | H31: =_xlfn.IFNA(VLOOKUP(B31,'Art. List'!$C:$F,4,FALSE)*D31/1000,0) -> 0
B32: 542005007200 | C32: LEDTrunking Module L15-70W-4000-60-DALI | D32: =SUMIF(Configurator!$C:$C,Quotation!C32,Configurator!$D:$D) -> 0 | E32: =_xlfn.IFNA(VLOOKUP(B32,'Art. List'!$C:$F,3,FALSE),0) -> 305 | F32: 0 | H32: =_xlfn.IFNA(VLOOKUP(B32,'Art. List'!$C:$F,4,FALSE)*D32/1000,0) -> 0
B33: 542005007300 | C33: LEDTrunking Module L15-70W-4000-BW-DALI | D33: =SUMIF(Configurator!$C:$C,Quotation!C33,Configurator!$D:$D) -> 0 | E33: =_xlfn.IFNA(VLOOKUP(B33,'Art. List'!$C:$F,3,FALSE),0) -> 305 | F33: 0 | H33: =_xlfn.IFNA(VLOOKUP(B33,'Art. List'!$C:$F,4,FALSE)*D33/1000,0) -> 0
B34: 542098001000 | C34: LEDTrunking DALI Power Supply | D34: =SUMIF(Configurator!$C:$C,Quotation!C34,Configurator!$D:$D) -> 0 | E34: =_xlfn.IFNA(VLOOKUP(B34,'Art. List'!$C:$F,3,FALSE),0) -> 104 | F34: 0
B35: 542098002100 | C35: LEDTrunking Trunk 8 L15 | D35: =SUMIF(Configurator!$C:$C,Quotation!C35,Configurator!$D:$D) -> 0 | E35: =_xlfn.IFNA(VLOOKUP(B35,'Art. List'!$C:$F,3,FALSE),0) -> 43.5 | F35: 0
B36: 542098002300 | C36: LEDTrunking Trunk 8 L30 | D36: =SUMIF(Configurator!$C:$C,Quotation!C36,Configurator!$D:$D) -> 120 | E36: =_xlfn.IFNA(VLOOKUP(B36,'Art. List'!$C:$F,3,FALSE),0) -> 88 | F36: 10560
B37: 542098001800 | C37: LEDTrunking Cover L15 | D37: =SUMIF(Configurator!$C:$C,Quotation!C37,Configurator!$D:$D) -> 0 | E37: =_xlfn.IFNA(VLOOKUP(B37,'Art. List'!$C:$F,3,FALSE),0) -> 14.5 | F37: 0
B38: 542098002200 | C38: LEDTrunking Trunk 8 L15 End Part | D38: =SUMIF(Configurator!$C:$C,Quotation!C38,Configurator!$D:$D) -> 20 | E38: =_xlfn.IFNA(VLOOKUP(B38,'Art. List'!$C:$F,3,FALSE),0) -> 43.5 | F38: 870
B39: 542098002400 | C39: LEDTrunking Trunk 8 L30 End Part | D39: =SUMIF(Configurator!$C:$C,Quotation!C39,Configurator!$D:$D) -> 0 | E39: =_xlfn.IFNA(VLOOKUP(B39,'Art. List'!$C:$F,3,FALSE),0) -> 88 | F39: 0
B40: 542098001300 | C40: LEDTrunking Feed-in Box 8 | D40: =SUMIF(Configurator!$C:$C,Quotation!C40,Configurator!$D:$D) -> 20 | E40: =_xlfn.IFNA(VLOOKUP(B40,'Art. List'!$C:$F,3,FALSE),0) -> 62 | F40: 1240
B41: 542098011200 | C41: LEDTrunking Feed-out Box 8 | D41: =SUMIF(Configurator!$C:$C,Quotation!C41,Configurator!$D:$D) -> 0 | E41: =_xlfn.IFNA(VLOOKUP(B41,'Art. List'!$C:$F,3,FALSE),0) -> 62 | F41: 0
B42: 542098001700 | C42: LEDTrunking End Cap | D42: =SUMIF(Configurator!$C:$C,Quotation!C42,Configurator!$D:$D) -> 20 | E42: =_xlfn.IFNA(VLOOKUP(B42,'Art. List'!$C:$F,3,FALSE),0) -> 9.5 | F42: 190
B43: 542098011000 | C43: LEDTrunking Cover End Cap | D43: =SUMIF(Configurator!$C:$C,Quotation!C43,Configurator!$D:$D) -> 0 | E43: =_xlfn.IFNA(VLOOKUP(B43,'Art. List'!$C:$F,3,FALSE),0) -> 9.5 | F43: =IFERROR(E43*D43,"") -> 0
B44: 542098003000 | C44: LEDTrunking Cable Gland | D44: =SUMIF(Configurator!$C:$C,Quotation!C44,Configurator!$D:$D) -> 0 | E44: =_xlfn.IFNA(VLOOKUP(B44,'Art. List'!$C:$F,3,FALSE),0) -> 7.9 | F44: =E44*D44 -> 0
B45: 542098001500 | C45: LEDTrunking Feed-in Connector 8 | D45: =SUMIF(Configurator!$C:$C,Quotation!C45,Configurator!$D:$D) -> 0 | E45: =_xlfn.IFNA(VLOOKUP(B45,'Art. List'!$C:$F,3,FALSE),0) -> 20 | F45: 0
B46: 542098002900 | C46: LEDTrunking Mounting Clip | D46: =SUMIF(Configurator!$C:$C,Quotation!C46,Configurator!$D:$D) -> 0 | E46: =VLOOKUP(B46,'Art. List'!C$7:E$41,3,0) -> 6.3 | F46: 0
B47: 542098001900 | C47: LEDTrunking Mounting Clip Chain | D47: =SUMIF(Configurator!$C:$C,Quotation!C47,Configurator!$D:$D) -> 0 | E47: =VLOOKUP(B47,'Art. List'!C$7:E$41,3,0) -> 7.4 | F47: 0
B48: 542098002000 | C48: LEDTrunking Cord-3m | D48: =SUMIF(Configurator!$C:$C,Quotation!C48,Configurator!$D:$D) -> 140 | E48: =VLOOKUP(B48,'Art. List'!C$7:E$41,3,0) -> 10.5 | F48: =E48*D48 -> 1470
B49: 542098004600 | C49: LEDTrunking Sensor Probe L | D49: =SUMIF(Configurator!$C:$C,Quotation!C49,Configurator!$D:$D) -> 0 | E49: =VLOOKUP(B49,'Art. List'!C$7:E$41,3,0) -> 314 | F49: =E49*D49 -> 0
B50: 542098004700 | C50: LEDTrunking Sensor Probe H | D50: =SUMIF(Configurator!$C:$C,Quotation!C50,Configurator!$D:$D) -> 0 | E50: =VLOOKUP(B50,'Art. List'!C$7:E$41,3,0) -> 471 | F50: =E50*D50 -> 0
B51: 542098001100 | C51: LEDTrunking Sensor Cover L15 | D51: =SUMIF(Configurator!$C:$C,Quotation!C51,Configurator!$D:$D) -> 0 | E51: =VLOOKUP(B51,'Art. List'!C$7:E$41,3,0) -> 51 | F51: =E51*D51 -> 0
F52: =SUM(F16:F51) -> 60870 | H52: =SUM(H16:H34) -> 13
B54: ='Trunking Translation'!B21 -> Project Remark
B55: =IF(ISBLANK('Project Information'!B22),"",'Project Information'!B22) -> 
B60: ='Trunking Translation'!B22 -> Section Name & Remark
A61: 1 | B61: ='Project Information'!B31 -> Section_1 | C61: =IF('Project Information'!D31=0,"",'Project Information'!D31) ->  | D61: =IF(ISBLANK('Project Information'!H31),"",'Project Information'!H31) -> 
A62: 2 | B62: ='Project Information'!B32 -> Section_2 | C62: =IF('Project Information'!D32=0,"",'Project Information'!D32) ->  | D62: =IF(ISBLANK('Project Information'!H32),"",'Project Information'!H32) -> 
A63: 3 | B63: ='Project Information'!B33 -> Section_3 | C63: =IF('Project Information'!D33=0,"",'Project Information'!D33) ->  | D63: =IF(ISBLANK('Project Information'!H33),"",'Project Information'!H33) -> 
A64: 4 | B64: ='Project Information'!B34 -> Section_4 | C64: =IF('Project Information'!D34=0,"",'Project Information'!D34) ->  | D64: =IF(ISBLANK('Project Information'!H34),"",'Project Information'!H34) -> 
A65: 5 | B65: ='Project Information'!B35 -> Section_5 | C65: =IF('Project Information'!D35=0,"",'Project Information'!D35) ->  | D65: =IF(ISBLANK('Project Information'!H35),"",'Project Information'!H35) -> 
A66: 6 | B66: ='Project Information'!B36 -> Section_6 | C66: =IF('Project Information'!D36=0,"",'Project Information'!D36) ->  | D66: =IF(ISBLANK('Project Information'!H36),"",'Project Information'!H36) -> 
A67: 7 | B67: ='Project Information'!B37 -> Section_7 | C67: =IF('Project Information'!D37=0,"",'Project Information'!D37) ->  | D67: =IF(ISBLANK('Project Information'!H37),"",'Project Information'!H37) -> 
A68: 8 | B68: ='Project Information'!B38 -> Section_8 | C68: =IF('Project Information'!D38=0,"",'Project Information'!D38) ->  | D68: =IF(ISBLANK('Project Information'!H38),"",'Project Information'!H38) -> 
A69: 9 | B69: ='Project Information'!B39 -> Section_9 | C69: =IF('Project Information'!D39=0,"",'Project Information'!D39) ->  | D69: =IF(ISBLANK('Project Information'!H39),"",'Project Information'!H39) -> 
A70: 10 | B70: ='Project Information'!B40 -> Section_10 | C70: =IF('Project Information'!D40=0,"",'Project Information'!D40) ->  | D70: =IF(ISBLANK('Project Information'!H40),"",'Project Information'!H40) -> 
A71: 11 | B71: ='Project Information'!B41 -> Section_11 | C71: =IF('Project Information'!D41=0,"",'Project Information'!D41) ->  | D71: =IF(ISBLANK('Project Information'!H41),"",'Project Information'!H41) -> 
A72: 12 | B72: ='Project Information'!B42 -> Section_12 | C72: =IF('Project Information'!D42=0,"",'Project Information'!D42) ->  | D72: =IF(ISBLANK('Project Information'!H42),"",'Project Information'!H42) -> 
A73: 13 | B73: ='Project Information'!B43 -> Section_13 | C73: =IF('Project Information'!D43=0,"",'Project Information'!D43) ->  | D73: =IF(ISBLANK('Project Information'!H43),"",'Project Information'!H43) -> 
A74: 14 | B74: ='Project Information'!B44 -> Section_14 | C74: =IF('Project Information'!D44=0,"",'Project Information'!D44) ->  | D74: =IF(ISBLANK('Project Information'!H44),"",'Project Information'!H44) -> 
A75: 15 | B75: ='Project Information'!B45 -> Section_15 | C75: =IF('Project Information'!D45=0,"",'Project Information'!D45) ->  | D75: =IF(ISBLANK('Project Information'!H45),"",'Project Information'!H45) -> 
A76: 16 | B76: ='Project Information'!B46 -> Section_16 | C76: =IF('Project Information'!D46=0,"",'Project Information'!D46) ->  | D76: =IF(ISBLANK('Project Information'!H46),"",'Project Information'!H46) -> 
A77: 17 | B77: ='Project Information'!B47 -> Section_17 | C77: =IF('Project Information'!D47=0,"",'Project Information'!D47) ->  | D77: =IF(ISBLANK('Project Information'!H47),"",'Project Information'!H47) -> 
A78: 18 | B78: ='Project Information'!B48 -> Section_18 | C78: =IF('Project Information'!D48=0,"",'Project Information'!D48) ->  | D78: =IF(ISBLANK('Project Information'!H48),"",'Project Information'!H48) -> 
A79: 19 | B79: ='Project Information'!B49 -> Section_19 | C79: =IF('Project Information'!D49=0,"",'Project Information'!D49) ->  | D79: =IF(ISBLANK('Project Information'!H49),"",'Project Information'!H49) -> 
A80: 20 | B80: ='Project Information'!B50 -> Section_20 | C80: =IF('Project Information'!D50=0,"",'Project Information'!D50) ->  | D80: =IF(ISBLANK('Project Information'!H50),"",'Project Information'!H50) -> 
A81: 21 | B81: ='Project Information'!B51 -> Section_21 | C81: =IF('Project Information'!D51=0,"",'Project Information'!D51) ->  | D81: =IF(ISBLANK('Project Information'!H51),"",'Project Information'!H51) -> 
A82: 22 | B82: ='Project Information'!B52 -> Section_22 | C82: =IF('Project Information'!D52=0,"",'Project Information'!D52) ->  | D82: =IF(ISBLANK('Project Information'!H52),"",'Project Information'!H52) -> 
A83: 23 | B83: ='Project Information'!B53 -> Section_23 | C83: =IF('Project Information'!D53=0,"",'Project Information'!D53) ->  | D83: =IF(ISBLANK('Project Information'!H53),"",'Project Information'!H53) -> 
A84: 24 | B84: ='Project Information'!B54 -> Section_24 | C84: =IF('Project Information'!D54=0,"",'Project Information'!D54) ->  | D84: =IF(ISBLANK('Project Information'!H54),"",'Project Information'!H54) -> 
A85: 25 | B85: ='Project Information'!B55 -> Section_25 | C85: =IF('Project Information'!D55=0,"",'Project Information'!D55) ->  | D85: =IF(ISBLANK('Project Information'!H55),"",'Project Information'!H55) -> 
A86: 26 | B86: ='Project Information'!B56 -> Section_26 | C86: =IF('Project Information'!D56=0,"",'Project Information'!D56) ->  | D86: =IF(ISBLANK('Project Information'!H56),"",'Project Information'!H56) -> 
A87: 27 | B87: ='Project Information'!B57 -> Section_27 | C87: =IF('Project Information'!D57=0,"",'Project Information'!D57) ->  | D87: =IF(ISBLANK('Project Information'!H57),"",'Project Information'!H57) -> 
A88: 28 | B88: ='Project Information'!B58 -> Section_28 | C88: =IF('Project Information'!D58=0,"",'Project Information'!D58) ->  | D88: =IF(ISBLANK('Project Information'!H58),"",'Project Information'!H58) -> 
A89: 29 | B89: ='Project Information'!B59 -> Section_29 | C89: =IF('Project Information'!D59=0,"",'Project Information'!D59) ->  | D89: =IF(ISBLANK('Project Information'!H59),"",'Project Information'!H59) -> 
A90: 30 | B90: ='Project Information'!B60 -> Section_30 | C90: =IF('Project Information'!D60=0,"",'Project Information'!D60) ->  | D90: =IF(ISBLANK('Project Information'!H60),"",'Project Information'!H60) -> 
A91: 31 | B91: ='Project Information'!B61 -> Section_31 | C91: =IF('Project Information'!D61=0,"",'Project Information'!D61) ->  | D91: =IF(ISBLANK('Project Information'!H61),"",'Project Information'!H61) -> 
A92: 32 | B92: ='Project Information'!B62 -> Section_32 | C92: =IF('Project Information'!D62=0,"",'Project Information'!D62) ->  | D92: =IF(ISBLANK('Project Information'!H62),"",'Project Information'!H62) -> 
A93: 33 | B93: ='Project Information'!B63 -> Section_33 | C93: =IF('Project Information'!D63=0,"",'Project Information'!D63) ->  | D93: =IF(ISBLANK('Project Information'!H63),"",'Project Information'!H63) -> 
A94: 34 | B94: ='Project Information'!B64 -> Section_34 | C94: =IF('Project Information'!D64=0,"",'Project Information'!D64) ->  | D94: =IF(ISBLANK('Project Information'!H64),"",'Project Information'!H64) -> 
A95: 35 | B95: ='Project Information'!B65 -> Section_35 | C95: =IF('Project Information'!D65=0,"",'Project Information'!D65) ->  | D95: =IF(ISBLANK('Project Information'!H65),"",'Project Information'!H65) -> 
A96: 36 | B96: ='Project Information'!B66 -> Section_36 | C96: =IF('Project Information'!D66=0,"",'Project Information'!D66) ->  | D96: =IF(ISBLANK('Project Information'!H66),"",'Project Information'!H66) -> 
A97: 37 | B97: ='Project Information'!B67 -> Section_37 | C97: =IF('Project Information'!D67=0,"",'Project Information'!D67) ->  | D97: =IF(ISBLANK('Project Information'!H67),"",'Project Information'!H67) -> 
A98: 38 | B98: ='Project Information'!B68 -> Section_38 | C98: =IF('Project Information'!D68=0,"",'Project Information'!D68) ->  | D98: =IF(ISBLANK('Project Information'!H68),"",'Project Information'!H68) -> 
A99: 39 | B99: ='Project Information'!B69 -> Section_39 | C99: =IF('Project Information'!D69=0,"",'Project Information'!D69) ->  | D99: =IF(ISBLANK('Project Information'!H69),"",'Project Information'!H69) -> 
A100: 40 | B100: ='Project Information'!B70 -> Section_40 | C100: =IF('Project Information'!D70=0,"",'Project Information'!D70) ->  | D100: =IF(ISBLANK('Project Information'!H70),"",'Project Information'!H70) -> 
A101: 41 | B101: ='Project Information'!B71 -> Section_41 | C101: =IF('Project Information'!D71=0,"",'Project Information'!D71) ->  | D101: =IF(ISBLANK('Project Information'!H71),"",'Project Information'!H71) -> 
A102: 42 | B102: ='Project Information'!B72 -> Section_42 | C102: =IF('Project Information'!D72=0,"",'Project Information'!D72) ->  | D102: =IF(ISBLANK('Project Information'!H72),"",'Project Information'!H72) -> 
A103: 43 | B103: ='Project Information'!B73 -> Section_43 | C103: =IF('Project Information'!D73=0,"",'Project Information'!D73) ->  | D103: =IF(ISBLANK('Project Information'!H73),"",'Project Information'!H73) -> 
A104: 44 | B104: ='Project Information'!B74 -> Section_44 | C104: =IF('Project Information'!D74=0,"",'Project Information'!D74) ->  | D104: =IF(ISBLANK('Project Information'!H74),"",'Project Information'!H74) -> 
A105: 45 | B105: ='Project Information'!B75 -> Section_45 | C105: =IF('Project Information'!D75=0,"",'Project Information'!D75) ->  | D105: =IF(ISBLANK('Project Information'!H75),"",'Project Information'!H75) -> 
A106: 46 | B106: ='Project Information'!B76 -> Section_46 | C106: =IF('Project Information'!D76=0,"",'Project Information'!D76) ->  | D106: =IF(ISBLANK('Project Information'!H76),"",'Project Information'!H76) -> 
A107: 47 | B107: ='Project Information'!B77 -> Section_47 | C107: =IF('Project Information'!D77=0,"",'Project Information'!D77) ->  | D107: =IF(ISBLANK('Project Information'!H77),"",'Project Information'!H77) -> 
A108: 48 | B108: ='Project Information'!B78 -> Section_48 | C108: =IF('Project Information'!D78=0,"",'Project Information'!D78) ->  | D108: =IF(ISBLANK('Project Information'!H78),"",'Project Information'!H78) -> 
A109: 49 | B109: ='Project Information'!B79 -> Section_49 | C109: =IF('Project Information'!D79=0,"",'Project Information'!D79) ->  | D109: =IF(ISBLANK('Project Information'!H79),"",'Project Information'!H79) -> 
A110: 50 | B110: ='Project Information'!B80 -> Section_50 | C110: =IF('Project Information'!D80=0,"",'Project Information'!D80) ->  | D110: =IF(ISBLANK('Project Information'!H80),"",'Project Information'!H80) -> 
A111: 51 | B111: ='Project Information'!B81 -> Section_51 | C111: =IF('Project Information'!D81=0,"",'Project Information'!D81) ->  | D111: =IF(ISBLANK('Project Information'!H81),"",'Project Information'!H81) -> 
A112: 52 | B112: ='Project Information'!B82 -> Section_52 | C112: =IF('Project Information'!D82=0,"",'Project Information'!D82) ->  | D112: =IF(ISBLANK('Project Information'!H82),"",'Project Information'!H82) -> 
A113: 53 | B113: ='Project Information'!B83 -> Section_53 | C113: =IF('Project Information'!D83=0,"",'Project Information'!D83) ->  | D113: =IF(ISBLANK('Project Information'!H83),"",'Project Information'!H83) -> 
A114: 54 | B114: ='Project Information'!B84 -> Section_54 | C114: =IF('Project Information'!D84=0,"",'Project Information'!D84) ->  | D114: =IF(ISBLANK('Project Information'!H84),"",'Project Information'!H84) -> 
A115: 55 | B115: ='Project Information'!B85 -> Section_55 | C115: =IF('Project Information'!D85=0,"",'Project Information'!D85) ->  | D115: =IF(ISBLANK('Project Information'!H85),"",'Project Information'!H85) -> 
A116: 56 | B116: ='Project Information'!B86 -> Section_56 | C116: =IF('Project Information'!D86=0,"",'Project Information'!D86) ->  | D116: =IF(ISBLANK('Project Information'!H86),"",'Project Information'!H86) -> 
A117: 57 | B117: ='Project Information'!B87 -> Section_57 | C117: =IF('Project Information'!D87=0,"",'Project Information'!D87) ->  | D117: =IF(ISBLANK('Project Information'!H87),"",'Project Information'!H87) -> 
A118: 58 | B118: ='Project Information'!B88 -> Section_58 | C118: =IF('Project Information'!D88=0,"",'Project Information'!D88) ->  | D118: =IF(ISBLANK('Project Information'!H88),"",'Project Information'!H88) -> 
A119: 59 | B119: ='Project Information'!B89 -> Section_59 | C119: =IF('Project Information'!D89=0,"",'Project Information'!D89) ->  | D119: =IF(ISBLANK('Project Information'!H89),"",'Project Information'!H89) -> 
A120: 60 | B120: ='Project Information'!B90 -> Section_60 | C120: =IF('Project Information'!D90=0,"",'Project Information'!D90) ->  | D120: =IF(ISBLANK('Project Information'!H90),"",'Project Information'!H90) -> 
A121: 61 | B121: ='Project Information'!B91 -> Section_61 | C121: =IF('Project Information'!D91=0,"",'Project Information'!D91) ->  | D121: =IF(ISBLANK('Project Information'!H91),"",'Project Information'!H91) -> 
A122: 62 | B122: ='Project Information'!B92 -> Section_62 | C122: =IF('Project Information'!D92=0,"",'Project Information'!D92) ->  | D122: =IF(ISBLANK('Project Information'!H92),"",'Project Information'!H92) -> 
A123: 63 | B123: ='Project Information'!B93 -> Section_63 | C123: =IF('Project Information'!D93=0,"",'Project Information'!D93) ->  | D123: =IF(ISBLANK('Project Information'!H93),"",'Project Information'!H93) -> 
A124: 64 | B124: ='Project Information'!B94 -> Section_64 | C124: =IF('Project Information'!D94=0,"",'Project Information'!D94) ->  | D124: =IF(ISBLANK('Project Information'!H94),"",'Project Information'!H94) -> 
A125: 65 | B125: ='Project Information'!B95 -> Section_65 | C125: =IF('Project Information'!D95=0,"",'Project Information'!D95) ->  | D125: =IF(ISBLANK('Project Information'!H95),"",'Project Information'!H95) -> 
A126: 66 | B126: ='Project Information'!B96 -> Section_66 | C126: =IF('Project Information'!D96=0,"",'Project Information'!D96) ->  | D126: =IF(ISBLANK('Project Information'!H96),"",'Project Information'!H96) -> 
A127: 67 | B127: ='Project Information'!B97 -> Section_67 | C127: =IF('Project Information'!D97=0,"",'Project Information'!D97) ->  | D127: =IF(ISBLANK('Project Information'!H97),"",'Project Information'!H97) -> 
A128: 68 | B128: ='Project Information'!B98 -> Section_68 | C128: =IF('Project Information'!D98=0,"",'Project Information'!D98) ->  | D128: =IF(ISBLANK('Project Information'!H98),"",'Project Information'!H98) -> 
A129: 69 | B129: ='Project Information'!B99 -> Section_69 | C129: =IF('Project Information'!D99=0,"",'Project Information'!D99) ->  | D129: =IF(ISBLANK('Project Information'!H99),"",'Project Information'!H99) -> 
A130: 70 | B130: ='Project Information'!B100 -> Section_70 | C130: =IF('Project Information'!D100=0,"",'Project Information'!D100) ->  | D130: =IF(ISBLANK('Project Information'!H100),"",'Project Information'!H100) -> 
A131: 71 | B131: ='Project Information'!B101 -> Section_71 | C131: =IF('Project Information'!D101=0,"",'Project Information'!D101) ->  | D131: =IF(ISBLANK('Project Information'!H101),"",'Project Information'!H101) -> 
A132: 72 | B132: ='Project Information'!B102 -> Section_72 | C132: =IF('Project Information'!D102=0,"",'Project Information'!D102) ->  | D132: =IF(ISBLANK('Project Information'!H102),"",'Project Information'!H102) -> 
A133: 73 | B133: ='Project Information'!B103 -> Section_73 | C133: =IF('Project Information'!D103=0,"",'Project Information'!D103) ->  | D133: =IF(ISBLANK('Project Information'!H103),"",'Project Information'!H103) -> 
A134: 74 | B134: ='Project Information'!B104 -> Section_74 | C134: =IF('Project Information'!D104=0,"",'Project Information'!D104) ->  | D134: =IF(ISBLANK('Project Information'!H104),"",'Project Information'!H104) -> 
A135: 75 | B135: ='Project Information'!B105 -> Section_75 | C135: =IF('Project Information'!D105=0,"",'Project Information'!D105) ->  | D135: =IF(ISBLANK('Project Information'!H105),"",'Project Information'!H105) -> 
A136: 76 | B136: ='Project Information'!B106 -> Section_76 | C136: =IF('Project Information'!D106=0,"",'Project Information'!D106) ->  | D136: =IF(ISBLANK('Project Information'!H106),"",'Project Information'!H106) -> 
A137: 77 | B137: ='Project Information'!B107 -> Section_77 | C137: =IF('Project Information'!D107=0,"",'Project Information'!D107) ->  | D137: =IF(ISBLANK('Project Information'!H107),"",'Project Information'!H107) -> 
A138: 78 | B138: ='Project Information'!B108 -> Section_78 | C138: =IF('Project Information'!D108=0,"",'Project Information'!D108) ->  | D138: =IF(ISBLANK('Project Information'!H108),"",'Project Information'!H108) -> 
A139: 79 | B139: ='Project Information'!B109 -> Section_79 | C139: =IF('Project Information'!D109=0,"",'Project Information'!D109) ->  | D139: =IF(ISBLANK('Project Information'!H109),"",'Project Information'!H109) -> 
A140: 80 | B140: ='Project Information'!B110 -> Section_80 | C140: =IF('Project Information'!D110=0,"",'Project Information'!D110) ->  | D140: =IF(ISBLANK('Project Information'!H110),"",'Project Information'!H110) -> 
A141: 81 | B141: ='Project Information'!B111 -> Section_81 | C141: =IF('Project Information'!D111=0,"",'Project Information'!D111) ->  | D141: =IF(ISBLANK('Project Information'!H111),"",'Project Information'!H111) -> 
A142: 82 | B142: ='Project Information'!B112 -> Section_82 | C142: =IF('Project Information'!D112=0,"",'Project Information'!D112) ->  | D142: =IF(ISBLANK('Project Information'!H112),"",'Project Information'!H112) -> 
A143: 83 | B143: ='Project Information'!B113 -> Section_83 | C143: =IF('Project Information'!D113=0,"",'Project Information'!D113) ->  | D143: =IF(ISBLANK('Project Information'!H113),"",'Project Information'!H113) -> 
A144: 84 | B144: ='Project Information'!B114 -> Section_84 | C144: =IF('Project Information'!D114=0,"",'Project Information'!D114) ->  | D144: =IF(ISBLANK('Project Information'!H114),"",'Project Information'!H114) -> 
A145: 85 | B145: ='Project Information'!B115 -> Section_85 | C145: =IF('Project Information'!D115=0,"",'Project Information'!D115) ->  | D145: =IF(ISBLANK('Project Information'!H115),"",'Project Information'!H115) -> 
A146: 86 | B146: ='Project Information'!B116 -> Section_86 | C146: =IF('Project Information'!D116=0,"",'Project Information'!D116) ->  | D146: =IF(ISBLANK('Project Information'!H116),"",'Project Information'!H116) -> 
A147: 87 | B147: ='Project Information'!B117 -> Section_87 | C147: =IF('Project Information'!D117=0,"",'Project Information'!D117) ->  | D147: =IF(ISBLANK('Project Information'!H117),"",'Project Information'!H117) -> 
A148: 88 | B148: ='Project Information'!B118 -> Section_88 | C148: =IF('Project Information'!D118=0,"",'Project Information'!D118) ->  | D148: =IF(ISBLANK('Project Information'!H118),"",'Project Information'!H118) -> 
A149: 89 | B149: ='Project Information'!B119 -> Section_89 | C149: =IF('Project Information'!D119=0,"",'Project Information'!D119) ->  | D149: =IF(ISBLANK('Project Information'!H119),"",'Project Information'!H119) -> 
A150: 90 | B150: ='Project Information'!B120 -> Section_90 | C150: =IF('Project Information'!D120=0,"",'Project Information'!D120) ->  | D150: =IF(ISBLANK('Project Information'!H120),"",'Project Information'!H120) -> 
A151: 91 | B151: ='Project Information'!B121 -> Section_91 | C151: =IF('Project Information'!D121=0,"",'Project Information'!D121) ->  | D151: =IF(ISBLANK('Project Information'!H121),"",'Project Information'!H121) -> 
A152: 92 | B152: ='Project Information'!B122 -> Section_92 | C152: =IF('Project Information'!D122=0,"",'Project Information'!D122) ->  | D152: =IF(ISBLANK('Project Information'!H122),"",'Project Information'!H122) -> 
A153: 93 | B153: ='Project Information'!B123 -> Section_93 | C153: =IF('Project Information'!D123=0,"",'Project Information'!D123) ->  | D153: =IF(ISBLANK('Project Information'!H123),"",'Project Information'!H123) -> 
A154: 94 | B154: ='Project Information'!B124 -> Section_94 | C154: =IF('Project Information'!D124=0,"",'Project Information'!D124) ->  | D154: =IF(ISBLANK('Project Information'!H124),"",'Project Information'!H124) -> 
A155: 95 | B155: ='Project Information'!B125 -> Section_95 | C155: =IF('Project Information'!D125=0,"",'Project Information'!D125) ->  | D155: =IF(ISBLANK('Project Information'!H125),"",'Project Information'!H125) -> 
A156: 96 | B156: ='Project Information'!B126 -> Section_96 | C156: =IF('Project Information'!D126=0,"",'Project Information'!D126) ->  | D156: =IF(ISBLANK('Project Information'!H126),"",'Project Information'!H126) -> 
A157: 97 | B157: ='Project Information'!B127 -> Section_97 | C157: =IF('Project Information'!D127=0,"",'Project Information'!D127) ->  | D157: =IF(ISBLANK('Project Information'!H127),"",'Project Information'!H127) -> 
A158: 98 | B158: ='Project Information'!B128 -> Section_98 | C158: =IF('Project Information'!D128=0,"",'Project Information'!D128) ->  | D158: =IF(ISBLANK('Project Information'!H128),"",'Project Information'!H128) -> 
A159: 99 | B159: ='Project Information'!B129 -> Section_99 | C159: =IF('Project Information'!D129=0,"",'Project Information'!D129) ->  | D159: =IF(ISBLANK('Project Information'!H129),"",'Project Information'!H129) -> 
A160: 100 | B160: ='Project Information'!B130 -> Section_100 | C160: =IF('Project Information'!D130=0,"",'Project Information'!D130) ->  | D160: =IF(ISBLANK('Project Information'!H130),"",'Project Information'!H130) -> 

Sheet Instructions (hidden)
A4: 1. | J4: 2. | S4: 3.
A21: 4. | J21: 5.

Sheet Configurator (hidden)
B4: =IF(ISBLANK('Project Information'!$D$31),'Trunking Translation'!$B$26&" - " & 'Project Information'!$B$31,'Trunking Translation'!$B$26&" - " &'Project Information'!D31) -> OPPLE LED Trunking Configurator - Section_1
B5: =CONCATENATE('Project Information'!$C$9,": ",'Project Information'!$F$9," ",'Project Information'!$D$11,": ",'Project Information'!$F$11," ",'Project Information'!$D$13,": ",'Project Information'!$F$13," ",'Project Information'!$C$17,": ",'Project Information'!$F$17) -> Project Name*: Wholesaler: Installer: Representative*: | P5: LED Module Occupation per Line
B7: ='Trunking Translation'!$B$29 -> LED Module | E7: ='Trunking Translation'!$B$81 -> ACCESSORY | P7: ='Trunking Translation'!B52 -> Full
B8: ='Trunking Translation'!$B$29 -> LED Module | C8: LEDTrunking Module L15-50W-4000-BW | E8: ='Trunking Translation'!$B$32 -> Feed-in-box | F8: Yes | J8: Mouting Method | K8: Feed-in box? | P8: ='Trunking Translation'!B53 -> Half | T8: Probe L
B9: ='Trunking Translation'!$B$78 -> Dali Power Supply | C9: No | E9: ='Trunking Translation'!$B$72 -> Feed-out-box | F9: No | J9: ='Trunking Translation'!B49 -> Mounting Clip Chain | K9: ='Trunking Translation'!B47 -> Yes | P9: ='Trunking Translation'!B54 -> One-Third | T9: Probe H
E10: ='Trunking Translation'!$B$33 -> Mounting Method | F10: Cord 3m | J10: ='Trunking Translation'!B50 -> Cord 3m | K10: ='Trunking Translation'!B48 -> No | P10: ='Trunking Translation'!B55 -> Custom
J11: ='Trunking Translation'!B51 -> Mounting Clip | K11: ='Trunking Translation'!$B$57 -> Unknown
B12: ='Trunking Translation'!$B$80 -> LIGHT LINE CONFIGURATION | E12: ='Trunking Translation'!$B$82 -> SENSOR
B13: ='Trunking Translation'!$B$30 -> No. of Lines | C13: 20 | E13: ='Trunking Translation'!$B$73 -> Sensor | F13: No
B14: ='Trunking Translation'!$B$31 -> Length per line (m) | C14: 19.5 | E14: ='Trunking Translation'!$B$74 -> Installation Height (m)
B15: ='Trunking Translation'!$B$34 -> LED Module Occupation per Line | C15: Full | E15: ='Trunking Translation'!$B$76 -> Sensor Type
B16: ='Trunking Translation'!$B$36 -> LED Modules per Line | C16: 13 | E16: ='Trunking Translation'!$B$75 -> Sensor Occupation per Line
B17: ='Trunking Translation'!$B$35 -> Custom Amount | E17: ='Trunking Translation'!$B$77 -> No. of Sensors per Line | F17: 0
B18: ='Trunking Translation'!$B$37 -> Line ends with LED Module? | C18: =IF(ISBLANK(C15),"",IF(C15=$P$8,IF(RIGHT(C14/3-TRUNC(C14/3),1)="5",'Trunking Translation'!$B$47,'Trunking Translation'!$B$48),IF(C15=$P$9,IF(RIGHT(C14/4.5-TRUNC(C14/4.5),1)="3",'Trunking Translation'!$B$47,'Trunking Translation'!$B$48),IF(C15=$P$7,'Trunking Translation'!$B$47,'Trunking Translation'!$B$57)))) -> Yes | E18: ='Trunking Translation'!$B$35 -> Custom Amount
B20: ='Trunking Translation'!$B$38 -> Article Code | C20: ='Trunking Translation'!$B$39 -> Article Description | D20: ='Trunking Translation'!$B$40 -> Number of products needed | E20: ='Trunking Translation'!$B$41 -> Unit Gross Price | F20: ='Trunking Translation'!$B$42 -> Total Gross Price
B21: =IF(ISBLANK(C8),"",INDEX('Art. List'!$C$6:$C$23,MATCH(C21,'Art. List'!$D$6:$D$23,0))) -> 542005006100 | C21: =IF(ISBLANK(C8),"",C8) -> LEDTrunking Module L15-50W-4000-BW | D21: =IF(ISBLANK(C8),0,C16*C13) -> 260 | E21: =IF(ISBLANK(C8),"",INDEX('Art. List'!$E$6:$E$23,MATCH(Configurator!C21,'Art. List'!$D$6:$D$23,0))) -> 179 | F21: =IF(ISBLANK(C8),"",INDEX('Art. List'!$E$6:$E$23,MATCH(Configurator!C21,'Art. List'!$D$6:$D$23,0))*D21) -> 46540
B22: 542098001000 | C22: LEDTrunking DALI Power Supply | D22: =IF(ISNUMBER(SEARCH("DALI",C21)),1,0)*C13 -> 0 | E22: =VLOOKUP(B22,'Art. List'!C$6:E$41,3,0) -> 104 | F22: =E22*D22 -> 0
B23: 542098002100 | C23: LEDTrunking Trunk 8 L15 | D23: =IF(F9=$K$9,IF(((C14-ROUNDDOWN(C14/3,0)*3)*C13)>0,1*C13,0),0) -> 0 | E23: =VLOOKUP(B23,'Art. List'!C$6:E$41,3,0) -> 43.5 | F23: =E23*D23 -> 0
B24: 542098002300 | C24: LEDTrunking Trunk 8 L30 | D24: =ROUNDDOWN(C14/3,0)*C13-D27 -> 120 | E24: =VLOOKUP(B24,'Art. List'!C$6:E$41,3,0) -> 88 | F24: =D24*E24 -> 10560
B25: 542098001800 | C25: LEDTrunking Cover L15 | D25: =C13*((C14/1.5)-ROUNDUP(IF(C15=$P$7,C14/1.5,IF(C15=$P$8,C14/3,IF(C15=$P$9,C14/4.5,IF(C15=$P$10,C17,0)))),))-D39 -> 0 | E25: =VLOOKUP(B25,'Art. List'!C$6:E$41,3,0) -> 14.5 | F25: 0
B26: 542098002200 | C26: LEDTrunking Trunk 8 L15 End Part | D26: =IF(F9=$K$9,0,IF(((C14-ROUNDDOWN(C14/3,0)*3)/1.5*C13-D29)<0,0,C14-ROUNDDOWN(C14/3,0)*3)/1.5*C13) -> 20 | E26: =VLOOKUP(B26,'Art. List'!C$6:E$41,3,0) -> 43.5 | F26: 870
B27: 542098002400 | C27: LEDTrunking Trunk 8 L30 End Part | D27: =IF(F9=$K$9,0,IF(IF((C14-ROUNDDOWN(C14/3,0)*3=0),1,0)*C13-D29<0,0,IF((C14-ROUNDDOWN(C14/3,0)*3=0),1,0)*C13)) -> 0 | E27: =VLOOKUP(B27,'Art. List'!C$6:E$41,3,0) -> 88 | F27: 0
B28: 542098001300 | C28: LEDTrunking Feed-in Box 8 | D28: =IF(F8='Trunking Translation'!$B$47,1,0)*C13 -> 20 | E28: =VLOOKUP(B28,'Art. List'!C$6:E$41,3,0) -> 62 | F28: 1240
B29: 542098011200 | C29: LEDTrunking Feed-out Box 8 | D29: =IF(F9='Trunking Translation'!$B$47,1,0)*C13 -> 0 | E29: =VLOOKUP(B29,'Art. List'!C$6:E$41,3,0) -> 62 | F29: 0
B30: 542098001700 | C30: LEDTrunking End Cap | D30: =IF(D28=0,2,1)*C13-D29-D31 -> 20 | E30: =VLOOKUP(B30,'Art. List'!C$6:E$41,3,0) -> 9.5 | F30: 190
B31: 542098011000 | C31: LEDTrunking Cover End Cap | D31: =IF(F9=$K$9,0,IF(C18=$K$9,0,IF(C18=$K$11,0,IF(C18='Trunking Translation'!$B$47,0,Configurator!C13)))) -> 0 | E31: =VLOOKUP(B31,'Art. List'!C$6:E$41,3,0) -> 9.5 | F31: 0
B32: 542098003000 | C32: LEDTrunking Cable Gland | D32: =IF(D30=2*C13,1,0)*C13 -> 0 | E32: =VLOOKUP(B32,'Art. List'!C$6:E$41,3,0) -> 7.9 | F32: 0
B33: 542098001500 | C33: LEDTrunking Feed-in Connector 8 | D33: =D32 -> 0 | E33: =VLOOKUP(B33,'Art. List'!C$6:E$41,3,0) -> 20 | F33: =E33*D33 -> 0
B34: 542098002900 | C34: LEDTrunking Mounting Clip | D34: =IF(AND(C14=1.5,F10=$J$11),2*C13,IF(F10=$J$11,1,0)*C13*ROUNDUP((C14-2)/3+1,0)) -> 0 | E34: =VLOOKUP(B34,'Art. List'!C$6:E$41,3,0) -> 6.3 | F34: =D34*E34 -> 0
B35: 542098001900 | C35: LEDTrunking Mounting Clip Chain | D35: =IF(AND(C14=1.5,F10=$J$9),2*C13,IF(F10=$J$9,1,0)*C13*ROUNDUP((C14-2)/3+1,0)) -> 0 | E35: =VLOOKUP(B35,'Art. List'!C$6:E$41,3,0) -> 7.4 | F35: =D35*E35 -> 0
B36: 542098002000 | C36: LEDTrunking Cord-3m | D36: =IF(AND(C14=1.5,F10=$J$10),2*C13,IF(F10=$J$10,1,0)*C13*ROUNDUP((C14-2)/3+1,0)) -> 140 | E36: =VLOOKUP(B36,'Art. List'!C$6:E$41,3,0) -> 10.5 | F36: =D36*E36 -> 1470
B37: 542098004600 | C37: LEDTrunking Sensor Probe L | D37: =IF(F15=$T$8,F17,0)*C13 -> 0 | E37: =VLOOKUP(B37,'Art. List'!C$6:E$41,3,0) -> 314 | F37: =D37*E37 -> 0
B38: 542098004700 | C38: LEDTrunking Sensor Probe H | D38: =IF(F15=$T$9,F17,0)*C13 -> 0 | E38: =VLOOKUP(B38,'Art. List'!C$6:E$41,3,0) -> 471 | F38: =D38*E38 -> 0
B39: 542098001100 | C39: LEDTrunking Sensor Cover L15 | D39: =IF(D37<>0,D37,IF(D38<>0,D38,0)) -> 0 | E39: =VLOOKUP(B39,'Art. List'!C$6:E$41,3,0) -> 51 | F39: 0
F40: =SUM(F21:F39) -> 60870
B41: ='Trunking Translation'!$B$43&":" -> Remarks:

Sheet Components (hidden)
C1: OPPLE LED TRUNKING SYSTEM COMPONENTS
E5: Feed-in Box
N6: Trunk cover
E13: Feed-in connector
N15: LED Module
E23: Cable Gland
N27: Normal Trunk
E36: Mounting clip chain | N36: End trunk
E44: Mounting clip
E55: Cord 3m
E68: End Cap

Sheet Art. List (hidden)
I4: Trunking Sensor Detection Area (100% Sensitivity)
C5: Article code | D5: Article Description | E5: Gross Price | F5: Power | I5: Installation Height (m) | J5: Probe L (m) | K5: Probe H (m)
C6: 542005008200 | D6: LEDTrunking Module L15-35W-4000-120 | E6: 156 | F6: 35 | J6: L1 | K6: L1
C7: 542005005800 | D7: LEDTrunking Module L15-50W-4000-120 | E7: 179 | F7: 50 | I7: 3 | J7: 5 | K7: 0
C8: 542005005900 | D8: LEDTrunking Module L15-50W-4000-90 | E8: 179 | F8: 50 | I8: 4 | J8: 4.5 | K8: 6.7
C9: 542005006000 | D9: LEDTrunking Module L15-50W-4000-60 | E9: 179 | F9: 50 | I9: 5 | J9: 4 | K9: 8.4
C10: 542005006100 | D10: LEDTrunking Module L15-50W-4000-BW | E10: 179 | F10: 50 | I10: 6 | J10: 0 | K10: 10
C11: 542005006200 | D11: LEDTrunking Module L15-70W-4000-120 | E11: 257 | F11: 70 | I11: 7 | J11: 0 | K11: 9
C12: 542005006300 | D12: LEDTrunking Module L15-70W-4000-90 | E12: 257 | F12: 70 | I12: 8 | J12: 0 | K12: 8
C13: 542005006400 | D13: LEDTrunking Module L15-70W-4000-60 | E13: 257 | F13: 70 | I13: 9 | J13: 0 | K13: 7
C14: 542005006500 | D14: LEDTrunking Module L15-70W-4000-BW | E14: 257 | F14: 70 | I14: 10 | J14: 0 | K14: 6
C15: 542005008600 | D15: LEDTrunking Module L15-35W-4000-120-DALI | E15: 209 | F15: 35 | I15: 12.5 | J15: 0 | K15: 3.5
C16: 542005006600 | D16: LEDTrunking Module L15-50W-4000-120-DALI | E16: 226 | F16: 50
C17: 542005006700 | D17: LEDTrunking Module L15-50W-4000-90-DALI | E17: 226 | F17: 50
C18: 542005006800 | D18: LEDTrunking Module L15-50W-4000-60-DALI | E18: 226 | F18: 50
C19: 542005006900 | D19: LEDTrunking Module L15-50W-4000-BW-DALI | E19: 226 | F19: 50
C20: 542005007000 | D20: LEDTrunking Module L15-70W-4000-120-DALI | E20: 305 | F20: 70
C21: 542005007100 | D21: LEDTrunking Module L15-70W-4000-90-DALI | E21: 305 | F21: 70
C22: 542005007200 | D22: LEDTrunking Module L15-70W-4000-60-DALI | E22: 305 | F22: 70
C23: 542005007300 | D23: LEDTrunking Module L15-70W-4000-BW-DALI | E23: 305 | F23: 70
C24: 542098001000 | D24: LEDTrunking DALI Power Supply | E24: 104
C25: 542098001100 | D25: LEDTrunking Sensor Cover L15 | E25: 51
C26: 542098004600 | D26: LEDTrunking Sensor Probe L | E26: 314
C27: 542098004700 | D27: LEDTrunking Sensor Probe H | E27: 471
C28: 542098001300 | D28: LEDTrunking Feed-in Box 8 | E28: 62
C29: 542098001500 | D29: LEDTrunking Feed-in Connector 8 | E29: 20
C30: 542098011200 | D30: LEDTrunking Feed-out Box 8 | E30: 62
C31: 542098001700 | D31: LEDTrunking End Cap | E31: 9.5
C32: 542098011000 | D32: LEDTrunking Cover End Cap | E32: 9.5
C33: 542098001800 | D33: LEDTrunking Cover L15 | E33: 14.5
C34: 542098001900 | D34: LEDTrunking Mounting Clip Chain | E34: 7.4
C35: 542098002000 | D35: LEDTrunking Cord-3m | E35: 10.5
C36: 542098002100 | D36: LEDTrunking Trunk 8 L15 | E36: 43.5
C37: 542098002200 | D37: LEDTrunking Trunk 8 L15 End Part | E37: 43.5
C38: 542098002300 | D38: LEDTrunking Trunk 8 L30 | E38: 88
C39: 542098002400 | D39: LEDTrunking Trunk 8 L30 End Part | E39: 88
C40: 542098002900 | D40: LEDTrunking Mounting Clip | E40: 6.3
A41: x | C41: 542098003000 | D41: LEDTrunking Cable Gland | E41: 7.9
